Cogmind - Beta 13 @@@ ROGUE MODE // 2024.06.04 @ 07:45:57 Player: H3-RMN Result: Destroyed by Y-72 Warden with Quantum Rifle Performance ------------- Evolutions (9) 4500 Regions Visited (35) 7000 Robots Destroyed (403) 2015 Value Destroyed (15896) 15896 Prototype IDs (147) 2940 Alien Tech Used (8) 1600 Bonus (18335) 18335 TOTAL SCORE: 52286 Bonus ------- High Alert Combat Kills 2250 Follower Combat Kills 2125 Entered Garrisons 600 Network Hubs Disabled 600 Acquired ECA 300 Met Zhirov 300 Met Warlord at Base 500 MAIN.C Attacked Warlord 500 Built Enhanced Grunts 300 A7 Reached Mainframe 300 Met R17 at Cetus 500 Met R17 at Research 2000 Met Warlord at Research 2000 Invited to Help at Command 2000 Scanned by Researcher 500 Acquired SGEMP 2000 Delivered SGEMP 2000 Friendly Fire -440 Cogmind --------- Core Integrity 0/1600 Matter 800/800 Energy 100/100 System Corruption 0% Temperature Cool (10) Movement Flying (40) Location -1/Command Parts ------- > --- POWER (2) -------- (None) > --- PROPULSION (5) --- Improved Q-thruster > --- UTILITY (12) ----- Experimental Matter Compressor Advanced Visual Processing Unit Advanced Signal Interpreter Experimental Target Analyzer Experimental Core Analyzer Experimental Core Analyzer Graphene Brace Experimental Hacking Suite Authchip [Weapon] > --- WEAPON (6) ------- (None) > --- INVENTORY (5) ---- Transdimensional Reconstructor Point Singularity Launcher Point Singularity Launcher Point Singularity Launcher Point Singularity Launcher Peak State ------------ > --- POWER ------------ Light Neutrino Core Compact Particle Reactor > --- PROPULSION ------- Combat Antigrav System Combat Antigrav System Combat Linear Gravjet Combat Linear Gravjet Combat Linear Gravjet > --- UTILITY ---------- High-capacity Storage Unit Advanced Gravity Neutralizer Long-range Sensor Array Advanced Signal Interpreter Experimental Core Analyzer Medium Regenerative Plating Phase Armor Advanced Hacking Suite Experimental Hacking Suite Experimental Hacking Suite Authchip [Weapon] > --- WEAPON ----------- Phasing Sabre Sigix Broadsword Plasma Lance > --- INVENTORY -------- Vortex Chain Reactor Combat Antigrav System Superbattery Experimental Matter Compressor Precision Matter Filter Centrium Medium Armor Plating SHELL Armor Experimental EM Disruption Field Transdimensional Reconstructor Vortex Driver Vortex Catalyst Activator Point Singularity Launcher Point Singularity Launcher Point Singularity Launcher SGEMP Prototype [Rating: 212] Favorites ----------- Power Compact Particle Reactor Engine Light Angular Momentum Engine Power Core Neutrino Core Reactor Compact Particle Reactor Propulsion Cooled Gravmag System Treads Armored Treads Leg Myomer Leg Wheel Wheel Hover Unit Cooled Gravmag System Flight Unit Improved Q-thruster Utility Experimental Hacking Suite Device Advanced Sensor Array Storage Large Storage Unit Processor Improved Melee Analysis Suite Hackware Experimental Hacking Suite Protection Experimental Utility Shielding Artifact Phase Armor Weapon Hypervelocity Coil Gun Energy Gun Advanced Variable Charge Gun Energy Cannon Cooled Plasma Cannon Ballistic Gun Hypervelocity Coil Gun Ballistic Cannon Improved Light Cannon Launcher Grenade Launcher Special Weapon Improved Plasma Cutter Impact Weapon Shock Maul Slashing Weapon Phasing Sabre Piercing Weapon Plasma Lance Special Melee Weapon Datajack Build | -11 -10 -10 -10 -9 -8 -8 -8 -8 -8 -8 -8 -7 -7 -6 -6 -6 -6 -6 -5 -5 -5 -5 -4 -4 -4 -4 -4 -3 -3 -3 -2 -2 -2 -1 -1 ------- Run | Yrd Mat Min Exi Min Mat Gar Mat Gar Mat Gar Mat Fac Sto Fac Ext Cet Arc Hub Fac Upp Upp Zhi Pro Fac Upp Upp War Pro Res Tes Res Qua Sec Acc Com Slots Evolved 18 | . . . . . 4 . . . . . . 2 . 2 . . . . 2 . . . . 2 . . . . 2 . 2 . . 2 . Power 1 | . . . . . . . . . . . . . . . . . . . . . . . . 1 . . . . . . . . . . . Propulsion 3 | . . . . . 1 . . . . . . 1 . . . . . . . . . . . 1 . . . . . . . . . . . Utility 10 | . . . . . 3 . . . . . . 1 . 2 . . . . 2 . . . . . . . . . 2 . . . . . . Weapon 4 | . . . . . . . . . . . . . . . . . . . . . . . . . . . . . . . 2 . . 2 . Parts Attached 638 | 7 12 5 3 3 16 49 22 30 8 1 12 6 15 34 27 7 21 6 92 11 4 9 2 18 . 11 18 2 54 39 24 17 30 23 . Power 53 | 1 2 1 . . 2 1 1 1 . . 1 . 4 4 4 . 2 1 1 . 1 2 . 6 . 1 . . 7 . 1 3 4 2 . Engine 16 | 1 2 1 . . 2 1 1 1 . . . . 3 1 2 . 1 . . . . . . . . . . . . . . . . . . Core 16 | . . . . . . . . . . . 1 . 1 3 2 . 1 1 1 . 1 1 . . . . . . 1 . . 3 . . . Reactor 21 | . . . . . . . . . . . . . . . . . . . . . . 1 . 6 . 1 . . 6 . 1 . 4 2 . Propulsion 111 | 2 2 1 . 2 4 5 4 2 2 1 3 2 . 6 6 . 1 1 24 1 . 3 . 1 . 2 5 . 8 7 3 3 1 9 . Treads 16 | . . . . . . 5 2 2 2 1 . . . . 1 . . . . . . . . . . . . . . . 1 . . 2 . Leg 2 | . . . . . . . . . . . . . . . . . . . . . . . . . . . 1 . . . . . . 1 . Wheel 17 | 2 2 1 . 2 4 . 2 . . . . . . . . . . . . . . . . . . . . . . . . . . 4 . Hover 73 | . . . . . . . . . . . 3 2 . 6 5 . 1 1 24 1 . 3 . 1 . 2 3 . 8 7 2 3 1 . . Flight 3 | . . . . . . . . . . . . . . . . . . . . . . . . . . . 1 . . . . . . 2 . Utility 271 | 2 3 . . . 6 8 8 2 1 . 3 3 6 16 10 4 14 . 53 5 3 2 2 10 . . 8 . 31 23 14 9 19 6 . Device 117 | 1 . . . . 3 4 3 1 1 . . 1 2 2 5 . 7 . 25 4 1 1 1 3 . . 5 . 15 7 8 4 12 1 . Storage 19 | 1 2 . . . 1 . . . . . 1 . 1 . 1 1 . . 2 . . . . 1 . . . . 1 4 1 . 1 1 . Processor 28 | . 1 . . . . . . . . . . . 1 4 2 . 1 . 5 . 1 . . 1 . . 1 . 3 . 3 . 4 1 . Hackware 32 | . . . . . . . 3 . . . 1 . . 2 . . 5 . 8 . . . . 4 . . . . 2 3 2 . . 2 . Protection 72 | . . . . . 2 4 2 1 . . 1 2 2 8 2 3 1 . 13 1 1 1 1 1 . . 2 . 10 9 . 3 1 1 . Artifact 3 | . . . . . . . . . . . . . . . . . . . . . . . . . . . . . . . . 2 1 . . Weapon 203 | 2 5 3 3 1 4 35 9 25 5 . 5 1 5 8 7 3 4 4 14 5 . 2 . 1 . 8 5 2 8 9 6 2 6 6 . Energy Gun 17 | . . 1 . . . . . . . . . . . . . . 1 1 4 1 . . . . . . 2 . . 4 . . 1 2 . Energy Cannon 13 | . . . . . . . . . . . . . . . . . . . 1 2 . 1 . . . 3 1 1 . 1 1 . 1 1 . Ballistic Gun 60 | 2 3 . . 1 1 15 6 11 4 . 2 . 1 1 . . 1 1 3 . . . . . . . . . 4 . . . 3 1 . Ballistic Cannon 13 | . . 1 1 . 3 6 1 . . . . . . . . . . . . . . . . . . . . . 1 . . . . . . Launcher 32 | . 2 1 1 . . 5 2 1 . . 2 . 1 2 1 2 . . 2 1 . . . . . 2 . 1 1 1 2 . . 2 . Special Weapon 23 | . . . . . . 9 . 6 1 . . . . . 2 1 . 2 1 . . . . . . . . . . . 1 . . . . Impact Weapon 5 | . . . . . . . . . . . . . . . . . . . 2 . . 1 . . . 1 1 . . . . . . . . Slashing Weapon 24 | . . . . . . . . 7 . . 1 1 2 3 2 . 2 . 1 . . . . . . 1 1 . . 1 1 1 . . . Piercing Weapon 13 | . . . . . . . . . . . . . . 2 2 . . . . 1 . . . 1 . 1 . . 2 2 . 1 1 . . Special Melee Weapon 3 | . . . 1 . . . . . . . . . 1 . . . . . . . . . . . . . . . . . 1 . . . . Unidentified Prototypes 63 | . . . . . 1 . 2 . . . . . 2 3 . 1 1 . 6 . . 2 . 1 . . 7 . 7 12 4 4 10 . . Corrupted Parts 1 | . . . . . . . . . . . . . . . . . 1 . . . . . . . . . . . . . . . . . . System Corruption 10 | . . . . . . . . . . . . . . . . . 10 . . . . . . . . . . . . . . . . . . Parts Lost 119 | . 3 4 . 2 8 3 1 5 2 1 2 1 9 7 13 1 . 9 5 2 . . . 1 . 2 . . . 2 3 . 10 23 . Power 18 | . . 1 . . 1 . 1 . . . 1 . 4 1 3 . . 1 . 1 . . . . . 1 . . . . . . 1 2 . Propulsion 35 | . 1 1 . 2 3 2 . 2 1 1 . . . 1 3 1 . 5 1 1 . . . . . 1 . . . . . . 1 8 . Utility 38 | . 1 . . . 1 . . 2 . . 1 1 3 4 5 . . 3 3 . . . . . . . . . . 1 1 . 5 7 . Weapon 28 | . 1 2 . . 3 1 . 1 1 . . . 2 1 2 . . . 1 . . . . 1 . . . . . 1 2 . 3 6 . Highest Loss Streak 12 | . 2 3 . 1 3 1 1 3 1 1 2 1 5 3 5 1 . 8 3 2 . . . 1 . 2 . . . 1 1 . 3 12 . To Critical Strikes 1 | . . . . . . . . . . . . . . 1 . . . . . . . . . . . . . . . . . . . . . Average Slot Usage (%) 93 | . 99 97 100 98 84 99 99 99 95 81 83 97 93 96 97 86 82 94 87 93 99 100 100 97 100 99 95 100 97 97 94 94 90 65 40 Engine 4 | . 14 11 14 14 8 9 8 9 9 9 3 . 2 1 3 6 6 5 . . . . . . . . . . . . . . . . . Reactor 2 | . . . . . . . . . . . . . . . . . . . . . . . . 5 10 9 10 10 7 9 8 4 3 3 . Treads 4 | . . . . . . 19 17 26 26 27 13 . . . . . . . . . . . . . . . . . . . . . . 2 . Wheel 3 | . 27 28 28 27 25 6 9 . . . . . . . . . . . . . . . . . . . . . . . . . . 2 . Hover 16 | . . . . . . . . . . . 13 27 30 25 25 20 25 24 19 22 23 23 23 26 26 25 25 26 23 22 21 20 20 8 . Device 10 | . 2 . . . 4 22 11 17 15 9 3 5 5 7 8 . 1 . 8 14 17 13 11 9 5 5 17 15 20 21 15 16 14 8 4 Storage 6 | . 14 14 14 14 9 9 9 9 9 9 9 7 10 6 6 12 6 5 2 5 5 5 5 5 5 5 5 5 4 4 4 4 4 4 4 Processor 11 | . 11 14 14 14 9 3 . . . . . . . 13 30 32 25 6 11 11 11 11 11 10 15 15 6 5 4 4 5 8 11 19 20 Hackware 10 | . . . . . . . 18 9 9 9 12 15 15 9 . . . 32 22 15 11 11 11 20 21 21 16 15 16 18 20 17 15 6 8 Protection 5 | . . . . . 11 10 5 9 9 9 9 16 11 12 5 6 . 5 4 9 11 14 17 5 5 5 1 10 8 5 4 4 2 . . Energy Gun 1 | . . . . . . . . . . . . . . . . . 5 . 2 . . . . . . . . . . 3 3 . . 1 . Ballistic Gun 5 | . 28 . . 2 9 11 17 11 9 9 6 . . 2 . . 5 3 1 . . . . . . . . . 3 . . . 5 5 . Ballistic Cannon 1 | . . 13 14 14 7 5 . . . . . . . . . . . . . . . . . . . . . . . . . . . . . Slashing Weapon 1 | . . . . . . . . 4 3 . 4 12 11 8 5 . . 5 . . . . . . . . 5 5 1 . 3 7 4 . . Piercing Weapon 1 | . . . . . . . . . . . . . . 1 4 . . . . 4 5 3 . . 5 5 . . 2 4 4 3 3 . . Naked Turns . | . . . . . . . . . . . . . . . . . . . . . . . . . . . . . . . . . . . . Heaviest Build 133 | 15 90 93 94 94 98 111 110 112 110 110 116 38 44 50 45 53 49 40 43 36 46 45 45 57 51 58 95 93 86 85 90 90 98 133 3 Greatest Support 94 | 20 20 26 26 26 42 60 60 60 60 62 62 48 48 52 47 39 41 41 45 47 62 47 62 78 58 63 63 63 94 94 90 90 90 88 9 Greatest Overweight (x) 13 | . 4 4 3 5 3 10 10 11 2 1 1 1 . 1 1 1 13 1 3 9 2 . . . . . 1 1 1 1 1 1 1 8 . Average Overweight (x) 1 | . 3 3 3 3 2 4 3 1 1 1 . . . . . . 5 . . 1 . . . . . . . 1 . . . . . . . Largest Inventory Capacity 25 | 8 25 25 25 25 25 25 25 25 25 25 25 15 15 15 15 15 15 15 10 10 10 10 10 15 15 15 15 15 20 20 20 20 20 20 5 Average Capacity 17 | 6 24 25 25 25 25 25 25 25 25 25 20 15 15 15 15 15 15 14 7 10 10 10 10 11 15 15 15 15 16 20 20 20 20 17 5 Most Carried 25 | 6 25 25 25 25 25 25 25 25 23 23 23 14 15 15 15 15 15 15 10 10 10 10 10 15 15 15 15 15 20 20 20 20 20 20 5 Average Carried 16 | 3 18 23 24 24 22 24 24 21 21 22 18 13 13 14 14 14 14 14 7 9 9 9 10 10 14 14 14 15 16 19 19 19 19 17 5 Final Capacity 25 | 8 25 25 25 25 25 25 25 25 25 25 15 15 15 15 15 15 15 5 10 10 10 10 10 15 15 15 15 15 20 20 20 20 20 5 5 Final Carried 25 | 6 25 25 25 25 21 25 24 20 23 22 15 14 15 15 15 15 15 5 10 10 10 10 10 15 15 15 15 15 20 20 20 19 20 5 5 Class Distribution -------------------- 34% | Scavenger-Mutant 17% | Hacker-Mutant 16% | Mutant 7% | Wizard-Scout 7% | Wizard-Mutant 4% | Hacker-Scout 3% | Hacker-Ninja Dominant Class ---------------- Mutant | -10/Materials Mutant | -10/Mines Mutant | -10/Exiles Mutant | -9/Mines Mutant | -8/Materials Scavenger-Mutant | -8/Garrison Scavenger-Mutant | -8/Materials Mutant | -8/Garrison Mutant | -8/Materials Mutant | -8/Garrison Scavenger-Mutant | -8/Materials Scavenger-Mutant | -7/Factory Scavenger-Mutant | -7/Storage Scavenger-Mutant | -6/Factory Scavenger-Gladiator | -6/Extension Scavenger-Mutant | -6/Cetus Scavenger-Mutant | -6/Archives Wizard-Mutant | -6/Hub_04(d) Hacker-Scout | -5/Factory Hacker-Assassin | -5/Upper Caves Hacker-Ninja | -5/Upper Caves Hacker-Scout | -5/Zhirov Hacker-Scout | -4/Proximity Caves Wizard-Scout | -4/Factory Wizard-Scout | -4/Upper Caves Wizard-Scout | -4/Upper Caves Hacker-Mutant | -4/Warlord Hacker-Mutant | -3/Proximity Caves Hacker-Mutant | -3/Research Wizard-Mutant | -3/Testing Wizard-Mutant | -2/Research Hacker-Mutant | -2/Quarantine Hacker-Mutant | -2/Section 7 Scavenger-Gunner | -1/Access Scavenger-Mutant | -1/Command Resources | -11 -10 -10 -10 -9 -8 -8 -8 -8 -8 -8 -8 -7 -7 -6 -6 -6 -6 -6 -5 -5 -5 -5 -4 -4 -4 -4 -4 -3 -3 -3 -2 -2 -2 -1 -1 ----------- Run | Yrd Mat Min Exi Min Mat Gar Mat Gar Mat Gar Mat Fac Sto Fac Ext Cet Arc Hub Fac Upp Upp Zhi Pro Fac Upp Upp War Pro Res Tes Res Qua Sec Acc Com Matter Collected 13124 | 312 394 131 . 126 469 1207 1115 1149 190 . 228 175 225 363 411 180 564 50 1183 215 60 109 20 165 10 250 180 159 737 295 1095 170 699 488 . Remotely . | . . . . . . . . . . . . . . . . . . . . . . . . . . . . . . . . . . . . Salvage Created 17745 | 92 820 189 . 61 474 946 1390 1189 223 . 237 175 345 1130 1124 384 423 59 1563 98 57 362 . 23 . 399 . 109 564 512 234 442 2430 1691 . Parts 919 | 8 54 25 . 9 21 61 84 59 10 . 15 9 20 63 49 18 45 7 45 8 2 4 . 4 . 19 . 5 29 21 10 21 122 72 . Haulers Intercepted 13 | . . . . . . . 3 . . . . . . 1 . . . . 2 . . . . . . . . . 3 . 1 . . 3 . Recyclers Shooed 4 | . . . . . . . . . . . . . . . 1 . . . 2 . . . . . . . . . . . . . . 1 . Parts Field Recycled . | . . . . . . . . . . . . . . . . . . . . . . . . . . . . . . . . . . . . Retrieved Matter . | . . . . . . . . . . . . . . . . . . . . . . . . . . . . . . . . . . . . Parts Self-Destructed 23 | . . . . . . . . . . . . . . . . . . . . 4 . 3 . . . 15 . 1 . . . . . . . Prevented 5 | . . . . . . . . . . . . . . . . . . . . . . . . . . 5 . . . . . . . . . Kills | -11 -10 -10 -10 -9 -8 -8 -8 -8 -8 -8 -8 -7 -7 -6 -6 -6 -6 -6 -5 -5 -5 -5 -4 -4 -4 -4 -4 -3 -3 -3 -2 -2 -2 -1 -1 ------- Run | Yrd Mat Min Exi Min Mat Gar Mat Gar Mat Gar Mat Fac Sto Fac Ext Cet Arc Hub Fac Upp Upp Zhi Pro Fac Upp Upp War Pro Res Tes Res Qua Sec Acc Com Combat Hostiles Destroyed 272 | . 20 7 . 7 9 33 24 25 5 . 4 3 4 14 15 5 1 1 14 5 . . . . . 12 . 5 4 3 5 1 27 19 . Melee 51 | . . . . . . . . . . . . 3 1 12 13 . . . 2 . . . . . . 4 . . 1 . . 1 14 . . Guns 106 | . 14 1 . 1 6 9 19 22 5 . 1 . . . . . . 1 6 . . . . . . . . . 1 . . . 13 7 . Cannons 18 | . . 1 . . 3 7 . . . . . . . . . . . . . . . . . . . 1 . . . . . . . 6 . AOE 89 | . 6 5 . 6 . 17 5 3 . . 3 . 3 2 2 2 1 . 4 5 . . . . . 6 . 5 2 1 5 . . 6 . Classes Destroyed 24 | 2 6 . . . 1 1 1 3 1 . 1 . . 1 1 . . 1 . 1 . . . . . . . 1 . 2 . . 1 . . Worker 34 | . 2 1 . . 1 . 7 . . . 1 . 1 3 . . . 1 6 . . . . . . . . . 3 . . 1 . 7 . Builder 18 | . 1 2 . . . . 3 . . . 1 . 2 1 1 . . . . . . . . 1 . . . . 2 . . . . 4 . Tunneler 8 | 1 . 1 . . . . 1 . . . . 1 . . . . . . 2 . . . . . . . . . 1 . . . . 1 . Hauler 13 | . . . . . . . 3 . . . . . . 1 . . . . 2 . . . . . . . . . 3 . 1 . . 3 . Recycler 24 | 1 2 . . . 1 . 1 . . . 2 . 2 2 2 . . . 4 . . . . . . . . . . 2 . 2 . 3 . Mechanic 1 | . . . . . . . . . . . . . . . . . . . . . . . . . . . . . . 1 . . . . . Operator 16 | . 2 . . . 1 . 1 . . . . . . . . . 9 1 . . . . . . . . . . . 1 1 . . . . Drone 2 | . . . . . . . . . . . . . . . . . . . . . . . . . . . . 1 . . . . . 1 . Watcher 14 | . 1 . . . . . 1 . . . 1 . 1 . . 1 . . 4 . . . . . . . . . . 2 1 . 2 . . Swarmer 63 | . 6 3 . 4 . 11 5 3 . . 2 . . . 3 . . . 4 5 . . . . . 5 . 4 3 . 4 . . 1 . Cutter 3 | . . . . . . . . . . . . . . 3 . . . . . . . . . . . . . . . . . . . . . Saboteur 1 | . . . . . . . . . . . . . . . . . . 1 . . . . . . . . . . . . . . . . . Grunt 97 | . 14 4 . 2 7 10 14 9 1 . . 1 3 5 5 . . . 6 . . . . . . 2 . . . . 1 . 10 3 . Brawler 4 | . . . . . . . . 2 1 . . . . 1 . . . . . . . . . . . . . . . . . . . . . Duelist 2 | . . . . . . . . . 1 . . . . . 1 . . . . . . . . . . . . . . . . . . . . Researcher 4 | . . . . . . . . . . . . . . . . . . . . . . . . . . . . . . 1 . 1 2 . . Sentry 32 | . . . . . 2 5 4 3 2 . 1 1 1 2 4 . 1 . 2 . . . . . . . . . 1 . . 1 2 . . Specialist 3 | . . . . . . . . 3 . . . . . . . . . . . . . . . . . . . . . . . . . . . Hunter 32 | . . . . . . 7 1 2 . . . 1 . . . . . . . . . . . . . 4 . . . 3 . . 8 6 . Programmer 19 | . . . . . . . . 3 . . . . . 3 1 . . . 2 . . . . . . 1 . . . . . . 3 6 . Heavy 4 | . . . . . . . . . . . 1 . . . . . . . . . . . . . . . . . . . . . 1 2 . Behemoth 1 | . . . . . . . . . . . . . . . 1 . . . . . . . . . . . . . . . . . . . . Cetus Guard 5 | . . . . . . . . . . . . . . . . 5 . . . . . . . . . . . . . . . . . . . S7 Guard 1 | . . . . . . . . . . . . . . . . . . . . . . . . . . . . . . . . . 1 . . Alpha 7 2 | . . . . . . . . . . . . . . . . . . . . . . . . . . . . . . . . . 2 . . Decomposer 3 | . . . . . . . . . . . . . . . . . . . . . . . . . . . . 3 . . . . . . . Samaritan 3 | . . . . . . . . . . . . . . . . . . . . 2 1 . . . . . . . . . . . . . . Best Kill Streak 14 | 2 4 5 . 4 2 5 8 5 2 . 4 2 7 5 3 3 2 2 8 5 . . . 1 . 5 . 5 4 7 4 2 5 14 . Combat Bots Only 9 | . 3 5 . 4 2 5 4 5 2 . 2 2 3 3 3 3 1 1 8 5 . . . . . 5 . 5 2 3 4 1 5 9 . Max Kills in Single Turn 5 | 1 3 2 . 3 1 2 2 2 1 . 2 1 2 2 1 2 1 1 3 3 1 . . 1 . 4 . 2 2 3 3 1 1 5 . Gunslinging 1 | . . . . . . . . 1 . . . . . . . . . . . . . . . . . . . . . . . . . . . Exploded 4 | . 3 2 . 3 . 2 2 1 . . 2 . 1 2 1 1 1 . 3 3 . . . . . 4 . 2 2 1 3 . . 3 . Melee 1 | . . . . . . . . . . . . 1 1 1 1 . . . 1 . . . . . . 1 . . 1 . . 1 1 . . Uniques/NPCs Destroyed 1 | . . . . 1 . . . . . . . . . . . . . . . . . . . . . . . . . . . . . . . YI-UF0 (-9/Mines) Combat | -11 -10 -10 -10 -9 -8 -8 -8 -8 -8 -8 -8 -7 -7 -6 -6 -6 -6 -6 -5 -5 -5 -5 -4 -4 -4 -4 -4 -3 -3 -3 -2 -2 -2 -1 -1 -------- Run | Yrd Mat Min Exi Min Mat Gar Mat Gar Mat Gar Mat Fac Sto Fac Ext Cet Arc Hub Fac Upp Upp Zhi Pro Fac Upp Upp War Pro Res Tes Res Qua Sec Acc Com Hostile Shots Fired 2307 | . 71 21 . 14 76 121 122 119 50 9 17 77 149 178 187 10 2 69 152 14 25 . 8 61 . 58 . 21 47 52 26 21 248 269 13 Missed 826 | . 22 5 . 5 18 38 42 22 9 4 9 22 76 71 72 3 1 23 55 5 10 . 5 29 . 26 . 6 24 24 10 13 72 98 7 Damage Taken 26719 | . 561 195 . 233 909 856 823 1436 641 82 298 462 777 1615 1296 97 20 1022 2087 177 309 . 62 587 . 587 44 193 635 725 398 438 3829 5192 133 Core 5113 | . 91 39 . 56 139 73 109 156 30 . 38 110 82 135 178 13 . 515 763 19 . . 11 77 . 151 . . 63 120 42 44 436 1516 107 Absorbed by Shields 1712 | . . . . . . 292 547 93 . . . . . . 181 93 . . 161 71 . . . . . . 43 181 50 . . . . . . Redirected to Shielding 570 | . . . . . 29 4 . . . . . . . . . . . 67 42 19 49 . 6 70 . 66 . 32 128 58 . . . . . Ignored by Resistances 229 | . . . . . . . . . . . . 30 32 . . . . . . . . . . . . . . . . . . . . 167 . Regen/Repaired (Parts) 5177 | . 15 . . . 63 . . . . . . 40 . 303 . . . . 720 . . . . 145 . . 200 . 660 435 116 357 2123 . . Core Remaining (%) 47 | 100 . . . 25 . . . . . . . . 72 . . . . 1 . . . . 20 . . . . 80 . 85 . . 47 . . Volleys Fired 927 | 7 96 20 . 11 53 112 109 104 27 . 19 . 5 2 3 8 64 2 45 10 . . 1 47 . 18 . 12 15 35 22 . 30 50 . Largest 4 | 2 2 2 . 2 2 2 2 2 2 . 2 . 1 1 1 1 1 1 2 1 . . 1 1 . 1 . 1 1 1 1 . 3 4 . Hottest 293 | 40 40 85 . 62 78 78 60 60 50 . 60 . 30 30 50 50 50 50 53 46 . . 35 35 . 105 . 100 46 100 55 . 120 293 . Shots Fired 1426 | 14 189 25 . 15 88 169 214 206 30 . 23 . 5 2 3 8 63 2 59 10 . . 2 47 . 18 . 12 15 35 22 . 61 89 . Gun 1110 | 14 187 9 . 4 62 78 210 203 30 . 12 . . . . . 58 2 53 . . . . . . . . . 14 29 18 . 61 66 . Cannon 208 | . . 11 . 4 26 76 . . . . . . . . . . . . 1 5 . . 2 47 . 12 . 3 . 2 . . . 19 . Launcher 105 | . 2 5 . 7 . 15 4 3 . . 11 . 5 2 3 8 5 . 2 5 . . . . . 6 . 9 1 4 4 . . 4 . Special 3 | . . . . . . . . . . . . . . . . . . . 3 . . . . . . . . . . . . . . . . Kinetic 1117 | 14 187 17 . 8 88 154 210 203 30 . 12 . . . . . 58 1 16 . . . . . . . . . 14 . . . 61 44 . Thermal 124 | . . 3 . . . . . . . . . . . . . . . . 38 5 . . 2 47 . 12 . . . . . . . 17 . Explosive 85 | . 2 5 . 7 . 15 4 3 . . 11 . 5 2 . . . . 2 5 . . . . . 6 . 9 1 4 4 . . . . Electromagnetic 69 | . . . . . . . . . . . . . . . 3 8 5 1 . . . . . . . . . . . 29 18 . . 5 . Entropic 28 | . . . . . . . . . . . . . . . . . . . . . . . . . . . . 3 . 2 . . . 23 . Robot Hit Streak 24 | 4 13 9 . 5 18 19 14 16 8 . 9 . . . 1 . 10 2 20 . . . . . . 24 . 6 5 6 5 . 9 15 . Robot Miss Streak 6 | 1 6 1 . 1 3 4 4 3 2 . 2 . . 4 . . 3 1 1 . . . . . . 2 . 1 1 2 3 . 4 3 . Penetration Max 2 | . . . . . . . . 1 . . . . . . . . 1 . . . . . . . . . . . . . 2 . 2 1 . Secondary Targets 13 | . 2 . . . 1 . . 8 . . . . . . . . . . . . . . . . . . . . . . . . 1 1 . Max Gunslinging Chain 1 | . 1 . . . 1 . . 1 . . . . . . . . . . . . . . . . . . . . . . . . 1 1 . Shots Hit Robots 1195 | 9 118 19 4 9 73 106 125 125 28 . 15 17 15 56 46 . 40 3 84 3 5 6 . 2 . 14 . 11 26 27 14 9 123 63 . Core Hits 737 | 3 46 16 . 11 25 94 62 45 13 . 12 5 16 31 28 15 27 2 34 9 2 4 . . . 13 . 7 12 16 21 6 95 67 . Critical Kills 23 | . . . . . 1 . 1 1 . . . . . . . . 9 . 1 . . . . . . . . . . . . . 8 2 . Critical Parts Destroyed 30 | . . . . . . 1 . 3 . . . . . . . . 10 . 9 . . . . . . 1 . . . . . . 2 4 . Critical Strikes 101 | . . . . . 2 1 1 4 . . . 3 2 10 3 . 19 . 15 . . . . . . 1 . . . 1 . 1 24 14 . Burn 5 | . . . . . . . . . . . . . . . . . . . 5 . . . . . . . . . . . . . . . . Destroy 43 | . . . . . 1 1 1 4 . . . . . . . . 19 . 1 . . . . . . . . . . . . . 10 6 . Blast 1 | . . . . . 1 . . . . . . . . . . . . . . . . . . . . . . . . . . . . . . Smash 10 | . . . . . . . . . . . . . . . . . . . 9 . . . . . . 1 . . . . . . . . . Sever 24 | . . . . . . . . . . . . 3 2 9 2 . . . . . . . . . . . . . . . . 1 7 . . Impale 10 | . . . . . . . . . . . . . . 1 1 . . . . . . . . . . . . . . 1 . . 7 . . Sunder 8 | . . . . . . . . . . . . . . . . . . . . . . . . . . . . . . . . . . 8 . Melee Attacks 576 | . . . 4 . . . . 32 1 . 2 19 17 92 55 . . 7 44 7 6 7 5 6 . 23 21 12 42 26 2 27 119 . . Thermal 3 | . . . . . . . . . . . . . 3 . . . . . . . . . . . . . . . . . . . . . . Impact 66 | . . . . . . . . . . . . . . . . . . . 42 . . 1 5 4 . 10 4 . . . . . . . . Slashing 295 | . . . . . . . . 32 1 . 2 19 14 81 16 . . 7 2 . . . . . . 2 3 12 9 . . 22 73 . . Piercing 208 | . . . . . . . . . . . . . . 11 39 . . . . 7 6 6 . 2 . 11 14 . 33 26 2 5 46 . . Sneak Attacks 72 | . . . 4 . . . . . 1 . 2 1 6 8 6 . . 1 12 3 2 . . 1 . . . 3 10 2 1 4 5 . . Combat Hostiles 5 | . . . . . . . . . . . . . . . 1 . . . 1 . . . . . . . . . . . . . 3 . . Follow-up Attacks 43 | . . . . . . . . . . . . 2 . 8 8 . . . . . . . . . . 2 . . . . . 2 21 . . Damage Inflicted 47472 | 116 1404 524 . 432 1115 3199 3210 2391 602 . 858 583 966 2087 2141 1248 438 166 3760 957 293 527 . 157 . 1496 . 1184 1625 1831 1032 1019 6699 5412 . Guns 13287 | 116 1092 63 . 31 716 813 2800 2123 545 . 129 . . . . . 318 31 1023 . . . . . . . . . 204 22 37 . 1605 1619 . Cannons 3165 | . . 139 . 58 399 884 . . . . . . . . . . . . . . . . . . . 73 . 88 . . . . . 1524 . Explosions 13747 | . 312 322 . 343 . 1502 410 268 . . 594 . 424 128 235 1248 120 . 450 737 . . . . . 1037 . 855 176 1448 869 . . 2269 . Melee 17265 | . . . . . . . . . 57 . 135 583 542 1959 1906 . . 135 2280 220 293 527 . 157 . 386 . 241 1245 360 126 1019 5094 . . Ramming 8 | . . . . . . . . . . . . . . . . . . . 7 . . . . . . . . . . 1 . . . . . Kinetic 13537 | 116 1092 178 . 89 1115 1697 2800 2123 545 . 129 . . . . . 318 . 335 . . . . . . . . . 204 . . . 1605 1191 . Thermal 2364 | . 36 24 . . . . . . . . 98 . . . 69 532 . . 688 . . . . . . 73 . . . 186 312 . . 346 . Explosive 8694 | . 276 322 . 343 . 1502 410 268 . . 496 . 424 128 . . . . 450 737 . . . . . 1037 . 855 176 713 557 . . . . Electromagnetic 1723 | . . . . . . . . . . . . . . . 166 716 120 31 . . . . . . . . . . . 571 37 . . 82 . Impact 2532 | . . . . . . . . . . . . . . . . . . . 2280 . . . . 72 . 180 . . . . . . . . . Slashing 8773 | . . . . . . . . . 57 . 135 583 542 1821 496 . . 135 . . . . . . . . . 241 245 . . 938 3580 . . Piercing 5960 | . . . . . . . . . . . . . . 138 1410 . . . . 220 293 527 . 85 . 206 . . 1000 360 126 81 1514 . . Entropic 3881 | . . . . . . . . . . . . . . . . . . . . . . . . . . . . 88 . . . . . 3793 . Highest Corruption 11 | . . . . . . . . 3 3 3 3 . . 10 11 11 11 4 6 . 1 1 1 . . . . 3 . 2 . . . . . Average Corruption 4 | . . . . . . . . 1 3 3 3 . . 5 10 11 7 2 5 . 1 1 1 . . . . 2 . 1 . . . . . Corruption Purged 31 | . . . . . . . . . . . . . . . . . 21 . 10 . . . . . . . . . . . . . . . . Corruption Blocked 73 | . . . . . . . . . . . . . . . . . . . . . . . . 10 . . 8 . . 8 47 . . . . Effects 153 | . . . . . . . . 25 9 4 3 . . 21 38 14 7 1 18 . . 2 3 . . . . 8 . . . . . . . Message Errors 32 | . . . . . . . . 4 2 . 1 . . 6 8 3 2 . 4 . . 1 . . . . . 1 . . . . . . . Matter Fused 44 | . . . . . . . . 7 3 2 . . . 5 14 3 1 . 6 . . 1 . . . . . 2 . . . . . . . Heat Flow Errors 14 | . . . . . . . . 2 1 2 2 . . 1 2 2 . . 1 . . . 1 . . . . . . . . . . . . Energy Discharges 15 | . . . . . . . . 2 . . . . . 4 3 3 1 . . . . . . . . . . 2 . . . . . . . Parts Rejected 4 | . . . . . . . . . . . . . . 1 2 . . . 1 . . . . . . . . . . . . . . . . Parts Fused 2 | . . . . . . . . 1 . . . . . . . . . . 1 . . . . . . . . . . . . . . . . Data Loss (minor) 20 | . . . . . . . . 6 1 . . . . 1 6 2 1 1 1 . . . . . . . . 1 . . . . . . . Data Loss (major) 11 | . . . . . . . . . 1 . . . . 3 . 1 1 . 3 . . . 1 . . . . 1 . . . . . . . Misfires 4 | . . . . . . . . 2 1 . . . . . . . . . . . . . 1 . . . . . . . . . . . . Alerts 3 | . . . . . . . . 1 . . . . . . . . . . 1 . . . . . . . . 1 . . . . . . . Misdirections 3 | . . . . . . . . . . . . . . . 3 . . . . . . . . . . . . . . . . . . . . Weapon Failures 1 | . . . . . . . . . . . . . . . . . 1 . . . . . . . . . . . . . . . . . . Overload Shots . | . . . . . . . . . . . . . . . . . . . . . . . . . . . . . . . . . . . . Overflow Damage 3664 | . 1 . . 30 5 24 14 67 . . 116 61 77 110 108 39 . 38 1496 109 53 58 . 55 . 117 . 189 266 151 81 . 161 238 . Projectiles 217 | . . . . . 5 . . . . . . . . . . . . . . . . . . . . . . 28 . . . . . 184 . Explosions 609 | . 1 . . 30 . 24 14 67 . . 79 . . . . 39 . . 49 12 . . . . . 2 . 8 . 149 81 . . 54 . Melee 2838 | . . . . . . . . . . . 37 61 77 110 108 . . 38 1447 97 53 58 . 55 . 115 . 153 266 2 . . 161 . . Knockbacks 28 | . . . . 1 5 13 . . . . . . . . . . . . 7 . . . . 1 . 1 . . . . . . . . . Impact 9 | . . . . . . . . . . . . . . . . . . . 7 . . . . 1 . 1 . . . . . . . . . Kinetic 18 | . . . . 1 4 13 . . . . . . . . . . . . . . . . . . . . . . . . . . . . . Secondary 1 | . . . . . 1 . . . . . . . . . . . . . . . . . . . . . . . . . . . . . . Self-Inflicted Damage 951 | . 7 . . 37 . 37 46 . . . 77 . 36 38 . . . . 3 120 . . . . . 19 . 27 . 209 16 . . 279 . Shots 25 | . 1 . . 1 . 3 3 . . . 2 . 1 1 . . . . . 3 . . . . . 2 . 1 . 4 1 . . 2 . Rammed 3 | . . . . . . . . . . . . . . . . . . . 2 . . . . . . . . . . 1 . . . . . Targets Rammed 3 | . . . . . . . . . . . . . . . . . . . 2 . . . . . . . . . . 1 . . . . . Kicked . | . . . . . . . . . . . . . . . . . . . . . . . . . . . . . . . . . . . . Crushed . | . . . . . . . . . . . . . . . . . . . . . . . . . . . . . . . . . . . . Highest Temperature 640 | 6 22 63 . 39 66 23 102 342 65 138 223 7 9 251 155 248 . . 92 . . . 162 46 . 236 . 108 10 132 212 220 36 640 . Average Temperature 59 | 6 4 22 . 17 22 8 21 69 9 61 79 6 8 133 73 115 . . 64 . . . 92 23 . 89 . 50 6 16 78 91 18 187 . Received Heat Transfer 4543 | . 279 114 . 12 567 270 406 399 261 45 . 126 216 366 280 . . 117 381 . 36 . 21 148 . 30 . . 85 51 9 . 243 72 9 Effects 15 | . . . . . . . . . . . . . . . . . . . . . . . . . . . . . . . 3 3 . 9 . Shutdowns 2 | . . . . . . . . . . . . . . . . . . . . . . . . . . . . . . . . . . 2 . Energy Bleed 3 | . . . . . . . . . . . . . . . . . . . . . . . . . . . . . . . . 1 . 2 . Interference 7 | . . . . . . . . . . . . . . . . . . . . . . . . . . . . . . . 3 2 . 2 . Matter Decay 2 | . . . . . . . . . . . . . . . . . . . . . . . . . . . . . . . . . . 2 . Damage (core) 1 | . . . . . . . . . . . . . . . . . . . . . . . . . . . . . . . . . . 1 . Siege Activations 2 | . . . . . . . . . . . . . . . . . . . . . . . . . . . . . . . . . . 2 . Total Turns 12 | . . . . . . . . . . . . . . . . . . . . . . . . . . . . . . . . . . 12 . Longest Duration 10 | . . . . . . . . . . . . . . . . . . . . . . . . . . . . . . . . . . 10 . Robots Corrupted 5 | . . . . . . . . . . . . . . . . 3 . . . . . . . . . . . . . 2 . . . . . Combat Hostiles 5 | . . . . . . . . . . . . . . . . 3 . . . . . . . . . . . . . 2 . . . . . Parts Fried 22 | . . . . . . . . . . . . . . . 1 5 . . 11 . . . . . . 3 . . . 1 . . . 1 . Impact Corruptions 45 | . . . . . . . . . . . . . . . . . . . 42 . . . . . . 3 . . . . . . . . . Robots Melted 1 | . . . . . . . . . . . . . . . . . . . 1 . . . . . . . . . . . . . . . . Combat Hostiles 1 | . . . . . . . . . . . . . . . . . . . 1 . . . . . . . . . . . . . . . . Parts Melted 8 | . . 1 . . . 1 . 1 . . . . . . 1 . . . 4 . . . . . . . . . . . . . . . . Heat Transferred 3194 | . 50 74 . . . . . . . . 50 . . . 100 350 . . 1702 . . . . . . 74 . . . 150 200 . . 444 . Parts Sabotaged . | . . . . . . . . . . . . . . . . . . . . . . . . . . . . . . . . . . . . Parts Stolen . | . . . . . . . . . . . . . . . . . . . . . . . . . . . . . . . . . . . . Parts Stripped . | . . . . . . . . . . . . . . . . . . . . . . . . . . . . . . . . . . . . Power Chain Reactions 8 | . . . . . . . . . . . . . . . 1 2 . . 1 . . . . . . . . . . 2 2 . . . . Alert | -11 -10 -10 -10 -9 -8 -8 -8 -8 -8 -8 -8 -7 -7 -6 -6 -6 -6 -6 -5 -5 -5 -5 -4 -4 -4 -4 -4 -3 -3 -3 -2 -2 -2 -1 -1 ------- Run | Yrd Mat Min Exi Min Mat Gar Mat Gar Mat Gar Mat Fac Sto Fac Ext Cet Arc Hub Fac Upp Upp Zhi Pro Fac Upp Upp War Pro Res Tes Res Qua Sec Acc Com Peak Influence 2084 | 10 368 315 . 183 166 1762 1005 2084 1056 554 575 422 492 516 677 475 453 352 292 . . . . 578 . . . . 602 444 350 255 477 1139 758 Initial 1015 | . 6 109 . . . 46 858 370 1015 554 265 261 191 230 252 212 190 . 154 . . . . 487 . . . . 600 130 13 123 8 285 728 Average 346 | 3 241 187 . 132 60 751 631 1149 969 545 394 322 354 357 436 327 50 200 114 . . . . 228 . . . . 51 282 206 153 167 788 731 Maximum Alert Level 5 | . 1 1 . . . 5 3 5 3 2 2 2 2 2 2 2 2 1 1 . . . . 2 . . . . 2 2 1 1 2 4 3 Low Security (%) 48 | 100 22 54 . 100 100 11 . . . . . . 4 . . . 87 42 86 . . . . 53 . . . . 96 20 54 68 66 . . Level 1 23 | . 77 45 . . . 28 8 1 . . 77 76 61 72 48 77 7 57 13 . . . . 14 . . . . . 58 45 31 25 10 . Level 2 13 | . . . . . . 14 61 23 . 100 22 23 34 27 51 21 4 . . . . . . 31 . . . . 3 20 . . 8 29 . Level 3 7 | . . . . . . 15 30 18 100 . . . . . . . . . . . . . . . . . . . . . . . . 54 100 Level 4 4 | . . . . . . 20 . 35 . . . . . . . . . . . . . . . . . . . . . . . . . 5 . Level 5 2 | . . . . . . 9 . 20 . . . . . . . . . . . . . . . . . . . . . . . . . . . High Security . | . . . . . . . . . . . . . . . . . . . . . . . . . . . . . . . . . . . . Max Security . | . . . . . . . . . . . . . . . . . . . . . . . . . . . . . . . . . . . . Squads Dispatched 100 | . 7 . . . 4 . 3 . 6 . 3 3 2 12 3 . . 7 12 . . . . 10 . . . . 7 6 2 . 6 7 . Investigation 46 | . 5 . . . . . 2 . 2 . . 3 1 7 1 . . 4 8 . . . . 4 . . . . 4 2 1 . 1 1 . Extermination 14 | . . . . . . . . . . . . . . 1 . . . . 4 . . . . 4 . . . . . 2 . . 2 1 . Reinforcement 30 | . 2 . . . 1 . 1 . 1 . 3 . 1 3 2 . . 1 . . . . . 2 . . . . 3 2 1 . 3 4 . Assault 4 | . . . . . . . . . 1 . . . . 1 . . . 1 . . . . . . . . . . . . . . . 1 . Garrison 6 | . . . . . 3 . . . 2 . . . . . . . . 1 . . . . . . . . . . . . . . . . . Intercept . | . . . . . . . . . . . . . . . . . . . . . . . . . . . . . . . . . . . . Searches Triggered 1 | . . . . . . . . . . . . . . . . . . . . . . . . 1 . . . . . . . . . . . Construction Impeded 4 | . . . . . . . . . . . . . . 1 1 . . . . . . . . . . . . . 1 . . . . 1 . Haulers Reinforced 2 | . . . . . . . . . . . . . . . . . . . . . . . . . . . . . 1 . . . 1 . . Active Scanning Responses . | . . . . . . . . . . . . . . . . . . . . . . . . . . . . . . . . . . . . Cargo Convoy Interrupts . | . . . . . . . . . . . . . . . . . . . . . . . . . . . . . . . . . . . . Stealth | -11 -10 -10 -10 -9 -8 -8 -8 -8 -8 -8 -8 -7 -7 -6 -6 -6 -6 -6 -5 -5 -5 -5 -4 -4 -4 -4 -4 -3 -3 -3 -2 -2 -2 -1 -1 --------- Run | Yrd Mat Min Exi Min Mat Gar Mat Gar Mat Gar Mat Fac Sto Fac Ext Cet Arc Hub Fac Upp Upp Zhi Pro Fac Upp Upp War Pro Res Tes Res Qua Sec Acc Com Distress Signals 52 | . 3 . . . 1 . 9 . 4 . 2 . . . . 2 . 1 3 . . . . 4 . . 1 . 3 . 12 . 3 4 . Communications Jammed 17 | . . . . . . . . . . . . . . . . . . . . . . . . . . . . . . 17 . . . . . Distress Signals 17 | . . . . . . . . . . . . . . . . . . . . . . . . . . . . . . 17 . . . . . Times Spotted 718 | . 39 7 . 7 12 44 41 35 36 4 10 7 21 28 32 9 26 17 34 8 7 . 10 40 . 16 48 10 19 21 32 11 35 48 4 Peak Tracking Total 20 | . 6 3 . 4 4 5 4 5 9 3 4 3 7 6 6 5 2 15 5 5 4 . 5 20 . 5 10 5 8 8 7 4 5 13 6 Tactical Retreats 76 | . 1 . . . . 6 3 5 . 1 1 1 4 8 5 . . 1 5 1 3 . 2 6 . 3 1 2 2 4 3 4 1 3 . Traps | -11 -10 -10 -10 -9 -8 -8 -8 -8 -8 -8 -8 -7 -7 -6 -6 -6 -6 -6 -5 -5 -5 -5 -4 -4 -4 -4 -4 -3 -3 -3 -2 -2 -2 -1 -1 ------- Run | Yrd Mat Min Exi Min Mat Gar Mat Gar Mat Gar Mat Fac Sto Fac Ext Cet Arc Hub Fac Upp Upp Zhi Pro Fac Upp Upp War Pro Res Tes Res Qua Sec Acc Com Traps Triggered 46 | . . . . . . 8 2 14 2 . . 1 1 1 3 . . 1 4 . . . . 1 . . . . 4 . 1 3 . . . Indirectly . | . . . . . . . . . . . . . . . . . . . . . . . . . . . . . . . . . . . . Trap Hack Attempts . | . . . . . . . . . . . . . . . . . . . . . . . . . . . . . . . . . . . . Triggered . | . . . . . . . . . . . . . . . . . . . . . . . . . . . . . . . . . . . . Disarmed . | . . . . . . . . . . . . . . . . . . . . . . . . . . . . . . . . . . . . Reprogrammed 26 | . . . . . . . . . . . . . . . . . . . 14 . . . . 6 . . . . . 6 . . . . . Reused 6 | . . . . . . . . . . . . . . . . . . . 6 . . . . . . . . . . . . . . . . Traps Extracted 2 | . . . . . . . . . . . . . . . . . . . . 2 . . . . . . . . . . . . . . . Installed 2 | . . . . . . . . . . . . . . . . . . . . 2 . . . . . . . . . . . . . . . Triggered 20 | . . . . . . . . . . . . . . . . . . . 6 2 . . . . . 1 10 . 1 . . . . . . Most Traps Carried 2 | . . . . . . . . . . . . . . . . . . . . 2 2 2 2 2 . . . . . . . . . . . Machines | -11 -10 -10 -10 -9 -8 -8 -8 -8 -8 -8 -8 -7 -7 -6 -6 -6 -6 -6 -5 -5 -5 -5 -4 -4 -4 -4 -4 -3 -3 -3 -2 -2 -2 -1 -1 ---------- Run | Yrd Mat Min Exi Min Mat Gar Mat Gar Mat Gar Mat Fac Sto Fac Ext Cet Arc Hub Fac Upp Upp Zhi Pro Fac Upp Upp War Pro Res Tes Res Qua Sec Acc Com Machines Disabled 45 | . 2 1 . . . 1 . . . . 2 . 2 1 . . 1 . . . . . . . . . . . . 18 2 8 7 . . Max in Single Turn 4 | . 2 1 . . . . . . . . 2 . 1 1 . . 1 . . . . . . . . . . . . 4 1 1 1 . . Garrison Access 17 | . . . . . . . . . . . . . . 1 . . . 1 3 . . . . 2 . . . . 4 1 2 1 1 1 . Garrison Relay 11 | . . . . . . 6 . 5 . . . . . . . . . . . . . . . . . . . . . . . . . . . Phase Generator 1 | . . . . . . 1 . . . . . . . . . . . . . . . . . . . . . . . . . . . . . Network Hub 3 | . . . . . . . . . . . . . . . . . . 3 . . . . . . . . . . . . . . . . . Energy Cycler 1 | . . . . . . . . . . . . . . . 1 . . . . . . . . . . . . . . . . . . . . Machines Repaired . | . . . . . . . . . . . . . . . . . . . . . . . . . . . . . . . . . . . . Machines Dismantled 21 | . . . . . . 10 . 6 . . . . . . 2 1 . 2 . . . . . . . . . . . . . . . . . Machines Sabotaged 2 | . . . . . . . . . . . . . . . . . . 2 . . . . . . . . . . . . . . . . . Overloaded Fab Kills 3 | . . . . . . . . . . . . . . . . . . . 3 . . . . . . . . . . . . . . . . Hacking | -11 -10 -10 -10 -9 -8 -8 -8 -8 -8 -8 -8 -7 -7 -6 -6 -6 -6 -6 -5 -5 -5 -5 -4 -4 -4 -4 -4 -3 -3 -3 -2 -2 -2 -1 -1 --------- Run | Yrd Mat Min Exi Min Mat Gar Mat Gar Mat Gar Mat Fac Sto Fac Ext Cet Arc Hub Fac Upp Upp Zhi Pro Fac Upp Upp War Pro Res Tes Res Qua Sec Acc Com Machines Accessed 183 | . 7 . 2 1 3 2 7 3 7 . 1 2 3 11 7 1 . 6 33 1 . 4 1 24 1 . 2 . 17 10 3 8 10 6 . Terminals 93 | . 4 . . . 1 2 5 3 5 . 1 . 2 3 6 1 . 5 15 . . . 1 10 . . . . 4 6 2 5 8 4 . Fabricators 20 | . . . . . . . . . . . . 1 . 3 . . . . 6 . . . . 5 . . . . 2 2 . . . 1 . Repair Stations 16 | . 1 . . . 1 . . . . . . 1 1 2 1 . . . 2 . . . . 2 . . . . 3 1 . 1 . . . Recycling Units 10 | . 2 . . . . . . . 1 . . . . . . . . . 2 . . . . 3 . . . . 2 . . . . . . Scanalyzers 13 | . . . . . . . 1 . . . . . . 2 . . . . 4 . . . . 2 . . . . 2 . . 1 1 . . Garrison Access 20 | . . . . . 1 . 1 . 1 . . . . 1 . . . 1 4 . . . . 2 . . . . 4 1 1 1 1 1 . Total Hacks 775 | . 21 . 5 1 9 6 23 8 15 . 3 7 12 43 15 1 . 18 178 1 . 16 2 116 1 . 5 . 88 72 18 31 42 18 . Successful 567 | . 7 . 5 1 5 1 20 1 5 . 2 4 4 25 5 . . 15 146 1 . 16 2 106 1 . 5 . 70 53 12 20 25 10 . Failed 206 | . 14 . . . 4 5 3 7 10 . 1 3 8 18 10 1 . 3 31 . . . . 9 . . . . 18 19 6 11 17 8 . Catastrophic 32 | . 4 . . . . 1 . 2 3 . . 2 . 3 5 . . . 2 . . . . . . . . . 2 2 . 1 5 . . Database Lockouts 2 | . . . . . . . . . . . . . . . . . . . 1 . . . . 1 . . . . . . . . . . . Manual 334 | . 15 . 1 . 6 . 5 . 10 . 3 2 4 7 6 1 . 12 76 . . . . 65 . . 1 . 40 39 7 17 14 3 . Terminals 460 | . 14 . . . 6 6 17 8 13 . 3 . 10 14 13 1 . 17 100 . . . 2 68 . . . . 36 48 17 24 37 6 . Fabricators 101 | . . . . . . . . . . . . 3 . 6 . . . . 35 . . . . 20 . . . . 12 17 . . . 8 . Repair Stations 55 | . 2 . . . 2 . . . . . . 4 2 8 2 . . . 6 . . . . 4 . . . . 15 6 . 4 . . . Recycling Units 35 | . 5 . . . . . . . 1 . . . . . . . . . 8 . . . . 12 . . . . 9 . . . . . . Scanalyzers 66 | . . . . . . . 5 . . . . . . 13 . . . . 21 . . . . 10 . . . . 11 . . 2 4 . . Garrison Access 29 | . . . . . 1 . 1 . 1 . . . . 2 . . . 1 8 . . . . 2 . . . . 5 1 1 1 1 4 . Terminal Hacks 242 | . 2 . 5 1 . 1 11 1 2 . 1 . 3 3 3 . . 7 60 1 . 16 2 40 1 . 5 . 18 23 9 10 13 4 . Record 16 | . . . 4 . . . . . . . . . . . . . . . . . . 5 2 . . . 4 . . . . 1 . . . Part Schematic 29 | . 1 . . . . . . . . . . . . . . . . 1 11 . . 3 . 6 . . . . 5 . . 1 1 . . Robot Schematic 1 | . . . . . . . . . . . . . . . . . . . 1 . . . . . . . . . . . . . . . . Robot Analysis 13 | . 1 . . . . . . . . . . . . . . . . . 5 . . 4 . 2 . . . . 1 . . . . . . Prototype ID Bank 18 | . . . . . . . 1 . . . . . . . . . . . 6 . . 4 . 4 . . . . 1 1 1 . . . . Open Door 11 | . . . . 1 . . . . . . . . 1 . . . . . . 1 . . . . 1 . 1 . . . . 1 1 4 . Level Access Points 10 | . . . . . . . . . . . 1 . 1 . . . . 1 1 . . . . 1 . . . . 1 1 1 1 1 . . Branch Access Points 4 | . . . . . . . . . . . . . . 1 . . . . 1 . . . . 1 . . . . 1 . . . . . . Emergency Access Points 8 | . . . . . . 1 . 1 . . . . . . . . . 1 2 . . . . 1 . . . . . . 1 . 1 . . Machine Index 6 | . . . . . . . . . . . . . . . . . . . 1 . . . . 1 . . . . 1 1 . 1 1 . . Terminal Index 7 | . . . . . . . 1 . . . . . . . . . . . 1 . . . . . . . . . 1 1 1 1 1 . . Scanalyzer Index 1 | . . . . . . . . . . . . . . . . . . . 1 . . . . . . . . . . . . . . . . Garrison Index 1 | . . . . . . . . . . . . . . . . . . . . . . . . . . . . . . . 1 . . . . Alert Level 11 | . . . . . . . 1 . . . . . . . 1 . . 1 3 . . . . . . . . . 2 1 . 2 . . . Unreport Threat 26 | . . . . . . . 5 . . . . . . . 1 . . 1 2 . . . . 3 . . . . 4 6 . 1 3 . . Locate Traps 13 | . . . . . . . 1 . 1 . . . 1 1 . . . 1 4 . . . . 2 . . . . . 1 1 . . . . Reprogram Traps 5 | . . . . . . . . . . . . . . . . . . . 3 . . . . 1 . . . . . 1 . . . . . Security Status 2 | . . . . . . . . . . . . . . . . . . . . . . . . 1 . . . . . 1 . . . . . Recall Investigation 7 | . . . . . . . . . . . . . . . . . . . 4 . . . . 2 . . . . . 1 . . . . . Recall Extermination 7 | . . . . . . . . . . . . . . . . . . . 2 . . . . 3 . . . . . 1 . . 1 . . Recall Reinforcements 2 | . . . . . . . . . . . . . . . . . . . . . . . . . . . . . . . 1 . 1 . . Recall Assault 1 | . . . . . . . . . . . . . . . . . . . 1 . . . . . . . . . . . . . . . . Hauler Manifests 4 | . . . . . . . 1 . . . . . . . . . . . 2 . . . . 1 . . . . . . . . . . . Registered Components 5 | . . . . . . . . . . . . . . . . . . 1 1 . . . . 1 . . . . . 1 1 . . . . Registered Prototypes 3 | . . . . . . . . . . . . . . . . . . . 1 . . . . 1 . . . . . 1 . . . . . Zone Layout 30 | . . . . . . . 1 . 1 . . . . 1 1 . . . 7 . . . . 9 . . . . 1 5 1 1 2 . . Derelict Proto ID Bank 1 | . . . 1 . . . . . . . . . . . . . . . . . . . . . . . . . . . . . . . . Fabricator Hacks 46 | . . . . . . . . . . . . 1 . 2 . . . . 19 . . . . 8 . . . . 6 7 . . . 3 . Network Status 2 | . . . . . . . . . . . . . . . . . . . 1 . . . . . . . . . 1 . . . . . . Load Schematic 27 | . . . . . . . . . . . . 1 . 2 . . . . 10 . . . . 5 . . . . 3 4 . . . 2 . Build 17 | . . . . . . . . . . . . . . . . . . . 8 . . . . 3 . . . . 2 3 . . . 1 . Repair Station Hacks 50 | . 2 . . . 2 . . . . . . 3 . 6 2 . . . 6 . . . . 4 . . . . 15 6 . 4 . . . Scan Component 26 | . 1 . . . 1 . . . . . . 2 . 3 1 . . . 3 . . . . 2 . . . . 8 3 . 2 . . . Repair 24 | . 1 . . . 1 . . . . . . 1 . 3 1 . . . 3 . . . . 2 . . . . 7 3 . 2 . . . Recycling Unit Hacks 11 | . 1 . . . . . . . 1 . . . . . . . . . 3 . . . . 4 . . . . 2 . . . . . . Report Inventory 7 | . 1 . . . . . . . . . . . . . . . . . 2 . . . . 3 . . . . 1 . . . . . . Retrieve Components 4 | . . . . . . . . . 1 . . . . . . . . . 1 . . . . 1 . . . . 1 . . . . . . Scanalyzer 57 | . . . . . . . 5 . . . . . . 9 . . . . 20 . . . . 10 . . . . 9 . . 1 3 . . Insert Component 28 | . . . . . . . 2 . . . . . . 4 . . . . 8 . . . . 5 . . . . 5 . . 1 3 . . Analyze 29 | . . . . . . . 3 . . . . . . 5 . . . . 12 . . . . 5 . . . . 4 . . . . . . Garrison Access Hacks 18 | . . . . . 1 . 1 . 1 . . . . 1 . . . . 3 . . . . 2 . . . . 4 1 1 1 1 1 . Unlock Access 3 | . . . . . 1 . 1 . 1 . . . . . . . . . . . . . . . . . . . . . . . . . . Seal Access 15 | . . . . . . . . . . . . . . 1 . . . . 3 . . . . 2 . . . . 4 1 1 1 1 1 . Unauthorized Hacks 143 | . 2 . . . 2 . 3 . 1 . 1 . 1 4 . . . 8 35 . . . . 38 . . . . 16 16 2 4 8 2 . Terminals 78 | . . . . . 2 . 3 . 1 . 1 . 1 1 . . . 7 17 . . . . 18 . . . . 5 10 2 3 7 . . Track 37 | . . . . . 1 . . . . . . . 1 . . . . 2 10 . . . . 10 . . . . 2 6 . 1 4 . . Assimilate 6 | . . . . . . . . . . . . . . 1 . . . . 1 . . . . 3 . . . . . . 1 . . . . Botnet 19 | . . . . . 1 . 1 . 1 . . . . . . . . 1 5 . . . . 3 . . . . 2 2 1 1 1 . . Disrupt 8 | . . . . . . . 1 . . . . . . . . . . 1 . . . . . 1 . . . . . 2 . 1 2 . . Operators 6 | . . . . . . . 1 . . . 1 . . . . . . 1 1 . . . . 1 . . . . 1 . . . . . . Sabotage 2 | . . . . . . . . . . . . . . . . . . 2 . . . . . . . . . . . . . . . . . Fabricators 40 | . . . . . . . . . . . . . . 3 . . . . 12 . . . . 12 . . . . 5 6 . . . 2 . Report 6 | . . . . . . . . . . . . . . . . . . . 1 . . . . 3 . . . . 1 1 . . . . . Prioritize 10 | . . . . . . . . . . . . . . . . . . . 4 . . . . 3 . . . . 1 1 . . . 1 . Liberate 8 | . . . . . . . . . . . . . . . . . . . 3 . . . . 3 . . . . 1 1 . . . . . Haulers 4 | . . . . . . . . . . . . . . . . . . . 1 . . . . 1 . . . . 1 1 . . . . . Overload 1 | . . . . . . . . . . . . . . . . . . . 1 . . . . . . . . . . . . . . . . Recompile 11 | . . . . . . . . . . . . . . 3 . . . . 2 . . . . 2 . . . . 1 2 . . . 1 . Repair Stations . | . . . . . . . . . . . . . . . . . . . . . . . . . . . . . . . . . . . . Recycling Units 21 | . 2 . . . . . . . . . . . . . . . . . 5 . . . . 8 . . . . 6 . . . . . . Reject 7 | . . . . . . . . . . . . . . . . . . . 2 . . . . 3 . . . . 2 . . . . . . Recyclers 5 | . . . . . . . . . . . . . . . . . . . 1 . . . . 2 . . . . 2 . . . . . . Mask 7 | . . . . . . . . . . . . . . . . . . . 2 . . . . 3 . . . . 2 . . . . . . Tunnel 2 | . 2 . . . . . . . . . . . . . . . . . . . . . . . . . . . . . . . . . . Scanalyzers 2 | . . . . . . . . . . . . . . . . . . . . . . . . . . . . . . . . 1 1 . . Researchers 2 | . . . . . . . . . . . . . . . . . . . . . . . . . . . . . . . . 1 1 . . Garrison Access 2 | . . . . . . . . . . . . . . . . . . 1 1 . . . . . . . . . . . . . . . . Reprogram 2 | . . . . . . . . . . . . . . . . . . 1 1 . . . . . . . . . . . . . . . . Data Cores Recovered . | . . . . . . . . . . . . . . . . . . . . . . . . . . . . . . . . . . . . Used . | . . . . . . . . . . . . . . . . . . . . . . . . . . . . . . . . . . . . Hacking Detections 119 | . 5 . . . 3 2 6 3 6 . 1 2 3 10 6 . . 4 20 . . . . 12 . . . . 11 8 2 5 7 3 . Full Trace Events 25 | . 3 . . . . 1 2 3 2 . . 2 . 3 1 . . 1 3 . . . . 1 . . . . 1 . 1 . 1 . . Feedback Events 1 | . . . . . . . . . . . . . . 1 . . . . . . . . . . . . . . . . . . . . . Hackware Fried 1 | . . . . . . . . . . . . . . 1 . . . . . . . . . . . . . . . . . . . . . Feedback Blocked . | . . . . . . . . . . . . . . . . . . . . . . . . . . . . . . . . . . . . Robot Schematics Acquired 5 | . . . . . . . . . . . . . . . . . . . 1 . . . . . . . . . . 1 . 2 1 . . Robots Built . | . . . . . . . . . . . . . . . . . . . . . . . . . . . . . . . . . . . . Authchips . | . . . . . . . . . . . . . . . . . . . . . . . . . . . . . . . . . . . . Time . | . . . . . . . . . . . . . . . . . . . . . . . . . . . . . . . . . . . . Total Robot Build Rating . | . . . . . . . . . . . . . . . . . . . . . . . . . . . . . . . . . . . . Part Schematics Acquired 54 | . 1 . . . . . 1 . . . . . . 3 . . . 1 18 . . 3 . 10 . . . . 9 1 . 3 4 . . Parts Built 20 | . . . . . . . . . . . . . . . . . . . 8 . . . . 5 . . . . 2 4 . . . 1 . Authchips 11 | . . . . . . . . . . . . . . . . . . . 5 . . . . 2 . . . . 1 2 . . . 1 . Time 1068 | . . . . . . . . . . . . . . . . . . . 569 . . . . 139 . . . . 129 157 . . . 74 . Total Part Build Rating 146 | . . . . . . . . . . . . . . . . . . . 52 . . . . 37 . . . . 12 36 . . . 9 . Parts Repaired 23 | . 1 . . . 1 . . . . . . 1 . 3 . . . . 3 . . . . 2 . . . . 7 3 . 2 . . . Time 1109 | . 26 . . . 16 . . . . . . 35 . 150 50 . . . 142 . . . . 66 . . . . 310 231 . 83 . . . Parts Recycled . | . . . . . . . . . . . . . . . . . . . . . . . . . . . . . . . . . . . . Recycled Matter . | . . . . . . . . . . . . . . . . . . . . . . . . . . . . . . . . . . . . Retrieved Matter . | . . . . . . . . . . . . . . . . . . . . . . . . . . . . . . . . . . . . Retrieved Components 5 | . . . . . . . . . 1 . . . . . . . . . 1 . . . . 3 . . . . . . . . . . . Parts Scanalyzed 21 | . . . . . . . 2 . . . . . . 3 . . . . 8 . . . . 4 . . . . 4 . . . . . . Part Schematics Acquired 19 | . . . . . . . 1 . . . . . . 3 . . . . 7 . . . . 4 . . . . 4 . . . . . . Parts Damaged 3 | . . . . . . . . . . . . . . . . . . . 1 . . . . 1 . . . . 1 . . . . . . Bothacking | -11 -10 -10 -10 -9 -8 -8 -8 -8 -8 -8 -8 -7 -7 -6 -6 -6 -6 -6 -5 -5 -5 -5 -4 -4 -4 -4 -4 -3 -3 -3 -2 -2 -2 -1 -1 ------------ Run | Yrd Mat Min Exi Min Mat Gar Mat Gar Mat Gar Mat Fac Sto Fac Ext Cet Arc Hub Fac Upp Upp Zhi Pro Fac Upp Upp War Pro Res Tes Res Qua Sec Acc Com Used RIF Installer . | . . . . . . . . . . . . . . . . . . . . . . . . . . . . . . . . . . . . Robots Hacked 6 | . . . 4 . . . . . . . . . . . . . . . 2 . . . . . . . . . . . . . . . . Non-combat 5 | . . . 3 . . . . . . . . . . . . . . . 2 . . . . . . . . . . . . . . . . Combat 1 | . . . 1 . . . . . . . . . . . . . . . . . . . . . . . . . . . . . . . . Robot Hacks Applied 6 | . . . 4 . . . . . . . . . . . . . . . 2 . . . . . . . . . . . . . . . . parse_system 5 | . . . 4 . . . . . . . . . . . . . . . 1 . . . . . . . . . . . . . . . . find_recycling 1 | . . . . . . . . . . . . . . . . . . . 1 . . . . . . . . . . . . . . . . Relay Couplers Released 55 | . . . . . . 25 . 26 . . . . . . . . . . . . . . . 2 . . . . . . 2 . . . . Machine Destruction 51 | . . . . . . 25 . 22 . . . . . . . . . . . . . . . 2 . . . . . . 2 . . . . Programmers 4 | . . . . . . . . 4 . . . . . . . . . . . . . . . . . . . . . . . . . . . Fabnet Peak Effective % . | . . . . . . . . . . . . . . . . . . . . . . . . . . . . . . . . . . . . Robots Rewired 27 | . . . . . . 9 . . . . . . . . 15 . . . . . . . . . . . . . . 1 2 . . . . Allies Hacked . | . . . . . . . . . . . . . . . . . . . . . . . . . . . . . . . . . . . . Hacks Repelled . | . . . . . . . . . . . . . . . . . . . . . . . . . . . . . . . . . . . . Allies | -11 -10 -10 -10 -9 -8 -8 -8 -8 -8 -8 -8 -7 -7 -6 -6 -6 -6 -6 -5 -5 -5 -5 -4 -4 -4 -4 -4 -3 -3 -3 -2 -2 -2 -1 -1 -------- Run | Yrd Mat Min Exi Min Mat Gar Mat Gar Mat Gar Mat Fac Sto Fac Ext Cet Arc Hub Fac Upp Upp Zhi Pro Fac Upp Upp War Pro Res Tes Res Qua Sec Acc Com Total Allies 67 | . . . . . . 9 . 2 . . . . 3 1 17 5 . 3 11 . . . . 9 . . . . . 1 3 . . 3 . Largest Group 10 | . . . . . . 6 . 2 1 . . . 2 1 10 7 6 8 7 . . . . 4 . . . . . 1 2 . . 3 . Highest-Rated Group 661 | . . . . . . 76 . 62 26 . . . 132 26 392 661 639 567 203 . . . . 186 . . . . . 99 220 . . 379 . Highest-Rated Ally 159 | . . . . . . 31 . 31 26 . . . 100 26 159 159 159 96 29 . . . . 47 . . . . . 99 119 . . 135 . Warlord Squad Rendezvous 5 | . . . . . . . . . . . . . . . . . . . . . . . . 5 . . . . . . . . . . . Dakka 1 | . . . . . . . . . . . . . . . . . . . . . . . . 1 . . . . . . . . . . . Infantry 1 | . . . . . . . . . . . . . . . . . . . . . . . . 1 . . . . . . . . . . . Geek 1 | . . . . . . . . . . . . . . . . . . . . . . . . 1 . . . . . . . . . . . Ghost 2 | . . . . . . . . . . . . . . . . . . . . . . . . 2 . . . . . . . . . . . Total Orders 25 | . . . . . 2 2 1 . . 1 1 . . . 1 . 2 . . . . . . . . . 10 . . 5 . . . . . STAY 3 | . . . . . . 1 . . . . . . . . . . 1 . . . . . . . . . . . . 1 . . . . . FOLLOW 2 | . . . . . . 1 . . . . . . . . . . 1 . . . . . . . . . . . . . . . . . . EXPLORE 7 | . . . . . 1 . 1 . . 1 1 . . . 1 . . . . . . . . . . . . . . 2 . . . . . RETURN 13 | . . . . . 1 . . . . . . . . . . . . . . . . . . . . . 10 . . 2 . . . . . Ally Attacks 430 | . . . . . . 18 . 28 . . . . 21 . 86 23 17 85 10 . . . . 26 . . 74 . . 5 8 . . 29 . Total Damage 12538 | . . . . . . 251 . 439 . . . . 768 . 2396 798 583 3035 138 . . . . 664 . . 1630 . . 399 348 . . 1089 . Kills 67 | . . . . . . 2 . 4 . . . . 5 . 14 5 3 12 1 . . . . 5 . . 5 . . . 2 . . 9 . Allies Corrupted 4 | . . . . . . . . . . . . . . . . . . 4 . . . . . . . . . . . . . . . . . Allies Melted 4 | . . . . . . . . . . . . . . . . . . . . . . . . . . . 1 . . . 3 . . . . Intel | -11 -10 -10 -10 -9 -8 -8 -8 -8 -8 -8 -8 -7 -7 -6 -6 -6 -6 -6 -5 -5 -5 -5 -4 -4 -4 -4 -4 -3 -3 -3 -2 -2 -2 -1 -1 ------- Run | Yrd Mat Min Exi Min Mat Gar Mat Gar Mat Gar Mat Fac Sto Fac Ext Cet Arc Hub Fac Upp Upp Zhi Pro Fac Upp Upp War Pro Res Tes Res Qua Sec Acc Com Robot Analysis Total 13 | . 1 . . . . . . . . . . . . . . . . . 5 . . 4 . 2 . . . . 1 . . . . . . Derelict Logs Recovered 10 | . . 1 . 2 . . . . . . . . . . . . . . . 1 1 . 2 . 1 2 . . . . . . . . . Drone Launches 37 | . . . . . 1 . 1 . 10 3 3 . . . 1 . . . . . . . . . . . 16 . . 2 . . . . . Drone Recoveries 19 | . . . . . 1 . . . . . . . . . 1 . . . . . . . . . . . 16 . . 1 . . . . . Exploration | -11 -10 -10 -10 -9 -8 -8 -8 -8 -8 -8 -8 -7 -7 -6 -6 -6 -6 -6 -5 -5 -5 -5 -4 -4 -4 -4 -4 -3 -3 -3 -2 -2 -2 -1 -1 ------------- Run | Yrd Mat Min Exi Min Mat Gar Mat Gar Mat Gar Mat Fac Sto Fac Ext Cet Arc Hub Fac Upp Upp Zhi Pro Fac Upp Upp War Pro Res Tes Res Qua Sec Acc Com Turns Passed 38641 | 79 1513 834 422 437 504 2985 1415 2754 606 145 219 188 267 1026 1002 362 6385 201 2920 1039 1230 130 237 1222 225 1318 1134 571 1888 985 1113 1202 1521 532 30 Spaces Moved 26381 | 50 598 571 302 291 153 1145 458 952 213 39 129 121 240 892 671 153 1850 290 3565 536 495 199 362 2025 387 652 996 479 2199 831 1734 946 1382 401 74 Core 981 | 1 . . . . . . . . . . . . . . . . 743 10 226 1 . . . . . . . . . . . . . . . Treads 1801 | . . . . . . 465 126 923 213 39 27 . . . . . . . . . . . . . . . . . . . . . . 8 . Legs . | . . . . . . . . . . . . . . . . . . . . . . . . . . . . . . . . . . . . Wheels 3062 | 49 598 571 302 291 153 680 332 29 . . . . . . . . . . . . . . . . . . . . . . . . . 57 . Hover 20307 | . . . . . . . . . . . 102 121 240 892 671 153 1107 280 3339 535 495 199 362 2025 387 652 996 479 2199 831 1734 946 1382 180 . Flight 230 | . . . . . . . . . . . . . . . . . . . . . . . . . . . . . . . . . . 156 74 Fastest Speed 21 | 50 80 135 135 135 116 116 140 155 246 238 74 71 71 54 50 50 50 48 30 42 30 45 30 21 40 40 47 107 38 38 43 56 56 40 40 Average Speed 98 | 79 136 135 135 136 124 207 179 247 248 243 108 80 71 70 68 112 325 50 43 104 47 45 44 39 40 43 75 107 48 50 51 81 59 73 40 Slowest Speed 700 | 80 140 140 135 175 135 240 240 330 330 246 238 144 71 144 146 115 700 96 280 500 150 45 45 40 40 47 114 107 147 118 148 154 146 267 40 Overloaded Moves 404 | . . . . . . . . . . . . . . 20 . . . 22 33 . 103 . 10 73 . . . . 62 51 30 . . . . Propulsion Burnouts . | . . . . . . . . . . . . . . . . . . . . . . . . . . . . . . . . . . . . Robots Hopped 8 | . . . . . . . . . . . . . 1 . . . . . . . . . . . . . . . . . . . . 7 . Cave-ins Triggered . | . . . . . . . . . . . . . . . . . . . . . . . . . . . . . . . . . . . . Exploration Rate (%) 58 | 4 95 96 71 59 12 98 94 95 63 27 42 4 50 29 73 65 93 48 61 61 58 60 62 46 69 67 88 69 59 69 54 81 61 17 7 Regions Visited 35 Branch Regions 20 Pre-discovered Areas 14 | . 2 2 1 2 . . . . . . . . . . . . . . . 2 . 3 1 . 1 . . . . . . . . . . Known Exits Taken 23 | . . . . . 1 . 1 . 1 . 1 . 1 1 1 . . 1 1 1 1 1 1 1 1 1 1 1 1 1 1 . 1 1 . Unknown Exits Taken 9 | 1 1 1 1 1 . . . . . . . 1 . . . 1 1 . . . . . . . . . . . . . . 1 . . . Scrap Searched 19 | . . 2 . 2 . . . . . . . . . . . . . . . 1 4 . 2 . 2 4 . 2 . . . . . . . Spaces Dug 442 | . . . . 10 . 24 20 3 . . . . 18 14 . . . 5 7 86 . . 2 45 . 37 10 8 42 10 . 4 10 87 . Terrain Destroyed 1219 | . 43 32 . 64 . 37 54 24 . . 162 . 26 22 . 30 . 5 20 86 . . 3 48 . 65 10 80 44 156 42 4 13 149 . Melee 101 | . . . . . . . . 3 . . . . . 14 . . . 5 6 4 . . 1 2 . 7 10 6 23 6 . 4 10 . . Projectile 110 | . . . . 1 . 1 15 . . . . . . . . . . . 5 5 . . 2 46 . 10 . 3 2 4 . . . 16 . AOE 1001 | . 43 32 . 63 . 36 39 21 . . 161 . 26 8 . 30 . . 9 77 . . . . . 48 . 71 19 144 42 . . 132 . Terrain Rammed . | . . . . . . . . . . . . . . . . . . . . . . . . . . . . . . . . . . . . Walls Destroyed . | . . . . . . . . . . . . . . . . . . . . . . . . . . . . . . . . . . . . Machines Disabled . | . . . . . . . . . . . . . . . . . . . . . . . . . . . . . . . . . . . . Actions | -11 -10 -10 -10 -9 -8 -8 -8 -8 -8 -8 -8 -7 -7 -6 -6 -6 -6 -6 -5 -5 -5 -5 -4 -4 -4 -4 -4 -3 -3 -3 -2 -2 -2 -1 -1 --------- Run | Yrd Mat Min Exi Min Mat Gar Mat Gar Mat Gar Mat Fac Sto Fac Ext Cet Arc Hub Fac Upp Upp Zhi Pro Fac Upp Upp War Pro Res Tes Res Qua Sec Acc Com Total 36753 | 72 1135 605 315 318 384 1533 875 1175 260 90 182 183 301 1159 1124 328 2174 321 4781 993 1479 230 426 2391 457 1631 1352 504 2921 1329 1923 1336 1842 550 74 Wait 7152 | 2 397 6 1 9 154 24 264 10 4 51 7 37 18 128 165 142 95 4 948 417 971 4 55 277 69 926 288 . 554 342 103 343 273 64 . Move 26335 | 49 597 570 301 290 153 1144 458 951 213 38 128 120 237 891 670 152 1849 289 3564 535 494 198 361 2024 386 651 995 478 2198 831 1733 945 1381 387 74 Hop 7 | . . . . . . . . . . . . . 1 . . . . . . . . . . . . . . . . . . . . 6 . Pick Up 303 | 7 25 4 3 3 5 26 5 1 5 . 7 2 5 11 11 4 68 . 27 4 1 3 . 10 1 4 10 . 19 13 3 2 6 8 . Fast Attach 308 | 6 1 . . . 3 4 8 . 5 . . 2 7 16 12 2 13 . 56 3 3 5 2 7 . 1 9 . 36 26 16 17 32 16 . Attach 133 | 1 2 4 1 2 11 3 2 5 1 1 7 3 5 9 9 2 4 2 13 4 . 1 . 4 . 3 6 . 10 6 3 . 3 6 . Detach 33 | . . . . . 2 . 1 . . . 2 . . 3 1 1 . 2 5 . . . . 2 . . . . 3 2 2 . 4 3 . Swap 204 | . 9 1 2 1 2 42 12 25 2 . 5 1 3 9 6 3 4 4 23 4 1 4 . 7 . 7 3 2 8 8 5 . . 1 . Drop 424 | . 8 . 3 2 1 31 16 1 2 . 5 1 3 14 9 6 77 2 52 7 3 9 2 8 1 3 23 . 36 38 19 10 23 9 . Fire 927 | 7 96 20 . 11 53 112 109 104 27 . 19 . 5 2 3 8 64 2 45 10 . . 1 47 . 18 . 12 15 35 22 . 30 50 . Melee 500 | . . . 4 . . . . 32 1 . 2 17 16 76 45 . . 7 44 7 6 6 5 5 . 18 18 12 42 26 2 19 90 . . Ram 2 | . . . . . . . . . . . . . . . . . . . 2 . . . . . . . . . . . . . . . . Kick . | . . . . . . . . . . . . . . . . . . . . . . . . . . . . . . . . . . . . Crush . | . . . . . . . . . . . . . . . . . . . . . . . . . . . . . . . . . . . . Escape Stasis 103 | . . . . . . 42 . 24 . . . . . . 22 . . . 2 . . . . . . . . . . . 13 . . . . Rewire 230 | . . . . . . 62 . . . . . . 1 . 163 . . . . . . . . . . . . . . 2 2 . . . . Trap 2 | . . . . . . . . . . . . . . . . . . . . 2 . . . . . . . . . . . . . . . Miscellaneous 90 | . . . . . . 43 . 22 . . . . . . 8 8 . 9 . . . . . . . . . . . . . . . . . Route ------- -11/Scrapyard -10/Materials (discovered 5 exits: [*Mat x3] / [*Min x2]) -10/Mines (discovered 3 exits: [*Mat x2] / *Exi) -10/Exiles -9/Mines (discovered 2 exits: *Mat x2) -8/Materials -8/Garrison (discovered 3 exits: *Mat x3) -8/Materials (discovered 4 exits: *Fac x3 / Gar) -8/Garrison (discovered 4 exits: *Mat x4) -8/Materials (discovered 2 exits: *Fac / Gar) -8/Garrison -8/Materials (discovered 3 exits: *Fac x3) -7/Factory -7/Storage -6/Factory (discovered 6 exits: *Fac x2 / *Low x2 / *Ext x2) -6/Extension (discovered 3 exits: *Fac x2 / *Cet) -6/Cetus (discovered 2 exits: *Fac / [*Arc]) -6/Archives (discovered 3 exits: *Fac / *Hub x2) -6/Hub_04(d) (discovered 4 exits: *Fac x4) -5/Factory (discovered 6 exits: *Fac x4 / *Upp x2) -5/Upper Caves -5/Upper Caves -5/Zhirov -4/Proximity Caves -4/Factory (discovered 7 exits: *Res x4 / *Upp x2 / Arm) -4/Upper Caves -4/Upper Caves (discovered 2 exits: *Res / *War) -4/Warlord -3/Proximity Caves -3/Research (discovered 5 exits: *Res x3 / *Tes x2) -3/Testing -2/Research (discovered 5 exits: *Acc x3 / *Qua x2) -2/Quarantine (discovered 2 exits: Acc / *Sec) -2/Section 7 -1/Access (discovered 2 exits: Sur / *Com) -1/Command History --------- Turn | Location | Event 7 | -11/Scrapyard | Discovered new exit (range 16) 80 | -11/Scrapyard | Entered Materials 305 | -10/Materials | Build established: Mutant 318 | -10/Materials | Discovered new exit (range 15) 373 | -10/Materials | Repaired Wheel 536 | -10/Materials | Discovered new exit (range 8) 600 | -10/Materials | Discovered new exit (range 16) 813 | -10/Materials | Discovered new exit (range 15) 915 | -10/Materials | Discovered new exit (range 14) 1214 | -10/Materials | Build established: Scavenger-Mutant 1593 | -10/Materials | Entered Mines 1646 | -10/Mines | Lost 3 parts (1p2w) 1662 | -10/Mines | Discovered new exit (range 11) 1713 | -10/Mines | Learned location of Zion (-6) 1750 | -10/Mines | Core integrity fell below 50% 1821 | -10/Mines | Discovered new exit (range 11) 1841 | -10/Mines | Learned location of Storage (-7) 1911 | -10/Mines | Build established: Mutant 2124 | -10/Mines | A weapon hastily lodged in a ceiling crevice suddenly fell to the ground 2420 | -10/Mines | Deemed a non-threat by the Exiles lab entrance 2421 | -10/Mines | Discovered new exit (range 5) 2427 | -10/Mines | Entered Exiles 2461 | -10/Exiles | Met 8R-AWN 2487 | -10/Exiles | Met EX-HEX 2553 | -10/Exiles | Met EX-DEC 2622 | -10/Exiles | Met EX-BIN 2671 | -10/Exiles | Opened EX-Vault 2680 | -10/Exiles | Found Modified TNC 2684 | -10/Exiles | Found Superbattery 2692 | -10/Exiles | Found Supersonic Drone Bay 2723 | -10/Exiles | Warned to stay clear of 0b10 Research branches 2834 | -10/Exiles | Discovered new exit (range 12) 2849 | -10/Exiles | Stole three prototypes: Superbattery, Modified TNC, Supersonic Drone Bay 2849 | -10/Exiles | Entered Mines 2894 | -9/Mines | Met a Derelict bent on vengeance 3037 | -9/Mines | Discovered new exit (range 8) 3177 | -9/Mines | Discovered new exit (range 8) 3229 | -9/Mines | Found the Drone Emporium 3240 | -9/Mines | Destroyed YI-UF0 3260 | -9/Mines | Found Prototype Device 3286 | -9/Mines | Entered Materials 3286 | -8/Materials | Evolved 4 slots: Propulsion x1, Utility x3 3287 | -8/Materials | Identified Decoy Drone Bay 3444 | -8/Materials | Garrison activated, responded to threat 3694 | -8/Materials | Lost 3 parts (1n1u1w) 3736 | -8/Materials | Lost 3 parts (1n2w) 3749 | -8/Materials | Repaired Imp. Ion Engine 3790 | -8/Materials | Identified exit to Garrison 3790 | -8/Materials | Entered Garrison 3838 | -8/Garrison | Triggered checkpoint 3932 | -8/Garrison | Triggered checkpoint 3990 | -8/Garrison | Garrison Relay disabled 4107 | -8/Garrison | Garrison Relay disabled 4175 | -8/Garrison | Build established: Scavenger-Mutant 4178 | -8/Garrison | Discovered new exit (range 13) 4256 | -8/Garrison | Triggered checkpoint 4752 | -8/Garrison | Triggered checkpoint 4778 | -8/Garrison | Triggered checkpoint 4817 | -8/Garrison | Lost 6 allies 4878 | -8/Garrison | Garrison Relay disabled 4961 | -8/Garrison | Discovered new exit (range 14) 4966 | -8/Garrison | Triggered checkpoint 5118 | -8/Garrison | Triggered checkpoint 5352 | -8/Garrison | Discovered new exit (range 10) 5416 | -8/Garrison | Triggered checkpoint 5456 | -8/Garrison | Garrison Relay disabled 5644 | -8/Garrison | Triggered checkpoint 5726 | -8/Garrison | Triggered checkpoint 5777 | -8/Garrison | Garrison Relay disabled 5950 | -8/Garrison | Phase Generator disabled 6441 | -8/Garrison | Lost 3 allies 6704 | -8/Garrison | Garrison Relay disabled 6775 | -8/Garrison | Entered Materials 7095 | -8/Materials | Build established: Hacker-Mutant 7531 | -8/Materials | Build established: Scavenger-Mutant 7540 | -8/Materials | Core integrity fell below 50% 8047 | -8/Materials | Discovered new exit (range 55) 8051 | -8/Materials | Discovered new exit (range 42) 8054 | -8/Materials | Discovered new exit (range 52) 8190 | -8/Materials | Identified exit to Garrison 8190 | -8/Materials | Entered Garrison 8214 | -8/Garrison | Triggered checkpoint 8250 | -8/Garrison | Discovered new exit (range 5) 8308 | -8/Garrison | Lost 3 parts (2n1u) 8527 | -8/Garrison | Build established: Mutant 8588 | -8/Garrison | Triggered checkpoint 8645 | -8/Garrison | Garrison Relay disabled 9103 | -8/Garrison | Garrison Relay disabled 9158 | -8/Garrison | Discovered new exit (range 15) 9211 | -8/Garrison | Rescued a captive Derelict 9212 | -8/Garrison | Rescued a captive Derelict 9282 | -8/Garrison | Triggered checkpoint 9334 | -8/Garrison | Garrison Relay disabled 9538 | -8/Garrison | Triggered checkpoint 9631 | -8/Garrison | Core integrity fell below 20% 9632 | -8/Garrison | Triggered checkpoint 9729 | -8/Garrison | Garrison Relay disabled 9808 | -8/Garrison | Discovered new exit (range 13) 10132 | -8/Garrison | Triggered checkpoint 10248 | -8/Garrison | Triggered checkpoint 10300 | -8/Garrison | Garrison Relay disabled 10472 | -8/Garrison | Discovered new exit (range 10) 10944 | -8/Garrison | Entered Materials 10944 | -8/Materials | Accompanied by 1 ally 11344 | -8/Materials | First assault squad dispatched 11429 | -8/Materials | Garrison activated, responded to threat 11446 | -8/Materials | Discovered new exit (range 54) 11550 | -8/Materials | Identified exit to Garrison 11550 | -8/Materials | Entered Garrison 11570 | -8/Garrison | Discovered new exit (range 28) 11572 | -8/Garrison | Triggered checkpoint 11578 | -8/Garrison | Triggered checkpoint 11578 | -8/Garrison | Triggered checkpoint 11674 | -8/Garrison | Triggered checkpoint 11676 | -8/Garrison | Triggered checkpoint 11695 | -8/Garrison | Entered Materials 11707 | -8/Materials | Identified exit to Factory 11914 | -8/Materials | Entered Factory 11914 | -7/Factory | Evolved 2 slots: Propulsion x1, Utility x1 11971 | -7/Factory | Discovered new exit (range 14) 12045 | -7/Factory | Repaired Broken Cmb. Airjet 12096 | -7/Factory | Build established: Scavenger-Mutant 12102 | -7/Factory | Entered Storage 12141 | -7/Storage | Met 01-MTF 12239 | -7/Storage | Found 01-MTF's Shockpuncher 12288 | -7/Storage | Found Prototype Device 12288 | -7/Storage | Identified 01-MTF's Autohacker 12321 | -7/Storage | Identified exit to Factory 12334 | -7/Storage | Lost 5 parts (1p3u1w) 12369 | -7/Storage | Entered Factory 12369 | -6/Factory | Evolved 2 slots: Utility x2 12390 | -6/Factory | Discovered new exit (range 13) 12539 | -6/Factory | Repaired Cmb. Airjet 12591 | -6/Factory | Repaired Cmb. Airjet? 12660 | -6/Factory | Repaired Cmb. Airjet 12880 | -6/Factory | Lost 3 parts (1n2u) 12913 | -6/Factory | Spotted B-75 Beast 12940 | -6/Factory | Discovered new exit (range 14) 12959 | -6/Factory | Identified exit to Factory 12973 | -6/Factory | Hacking Suite fried by hacking feedback 12988 | -6/Factory | Discovered new exit (range 11) 12995 | -6/Factory | Identified exit to Lower Caves 13069 | -6/Factory | First assault squad dispatched 13244 | -6/Factory | Identified exit to Extension 13275 | -6/Factory | System corruption reached 10% 13282 | -6/Factory | Build established: Scavenger-Gladiator 13395 | -6/Factory | Entered Extension 13414 | -6/Extension | Disrupted transfer network 13881 | -6/Extension | Energy Cycler disabled 13882 | -6/Extension | Rescued a captive Derelict 13885 | -6/Extension | Rescued a captive Derelict 13886 | -6/Extension | Rescued a captive Derelict 13888 | -6/Extension | Rescued a captive Derelict 13890 | -6/Extension | Rescued a captive Derelict 13891 | -6/Extension | Rescued A7 13921 | -6/Extension | Lost 5 parts (2p1n1u1w) 14089 | -6/Extension | Lost 10 allies 14096 | -6/Extension | Spotted B-75 Beast 14101 | -6/Extension | Spotted B-75 Beast 14105 | -6/Extension | Discovered exit to Factory (range 15) 14123 | -6/Extension | Destroyed B-75 Beast 14130 | -6/Extension | Allies destroyed B-75 Beast 14365 | -6/Extension | Discovered exit to Factory (range 10) 14365 | -6/Extension | Discovered new exit (range 6) 14383 | -6/Extension | Identified exit to Cetus 14397 | -6/Extension | Entered Cetus 14397 | -6/Cetus | Accompanied by 3 allies (A7) 14402 | -6/Cetus | Acquired a Cetus Manufacturing Module code from A7 14417 | -6/Cetus | Spotted Cetus Guard 14417 | -6/Cetus | Spotted Cetus Guard 14422 | -6/Cetus | Allies destroyed Cetus Guard 14422 | -6/Cetus | Spotted Cetus Guard 14423 | -6/Cetus | Spotted Cetus Guard 14423 | -6/Cetus | Destroyed Cetus Guard 14424 | -6/Cetus | Destroyed Cetus Guard 14430 | -6/Cetus | Allies destroyed Cetus Guard 14477 | -6/Cetus | Started Cetus Manufacturing Module 14502 | -6/Cetus | Manufactured an Enhanced Grunt 14505 | -6/Cetus | Escorted A7 to Cetus Mainframe 14523 | -6/Cetus | Build established: Scavenger-Mutant 14527 | -6/Cetus | Manufactured an Enhanced Grunt 14552 | -6/Cetus | Manufactured an Enhanced Grunt 14577 | -6/Cetus | Manufactured an Enhanced Grunt 14602 | -6/Cetus | Manufactured an Enhanced Grunt 14646 | -6/Cetus | Discovered new exit (range 15) 14672 | -6/Cetus | Spotted Cetus Guard 14673 | -6/Cetus | Spotted Cetus Guard 14676 | -6/Cetus | Spotted Cetus Guard 14677 | -6/Cetus | Spotted Cetus Guard 14680 | -6/Cetus | Destroyed Cetus Guard 14680 | -6/Cetus | Destroyed Cetus Guard 14681 | -6/Cetus | Destroyed Cetus Guard 14686 | -6/Cetus | Allies destroyed Cetus Guard 14693 | -6/Cetus | Discovered exit to Factory (range 15) 14699 | -6/Cetus | Met Revision 17 14759 | -6/Cetus | Entered Archives 14759 | -6/Archives | Accompanied by 6 allies (A7) 14764 | -6/Archives | Received a hacking code to weaken MAIN.C 14863 | -6/Archives | Discovered exit to Factory (range 16) 14985 | -6/Archives | Discovered new exit (range 15) 15079 | -6/Archives | Discovered new exit (range 16) 21144 | -6/Archives | Entered Hub_04(d) 21144 | -6/Hub_04(d) | Accompanied by 5 allies 21222 | -6/Hub_04(d) | Garrison activated, responded to threat 21282 | -6/Hub_04(d) | Network Hub disabled 21296 | -6/Hub_04(d) | Network Hub disabled 21313 | -6/Hub_04(d) | Network Hub disabled 21322 | -6/Hub_04(d) | Spotted Lightning 21326 | -6/Hub_04(d) | Spotted Lightning 21330 | -6/Hub_04(d) | Spotted Lightning 21331 | -6/Hub_04(d) | Core integrity fell below 50% 21340 | -6/Hub_04(d) | Core integrity fell below 20% 21345 | -6/Hub_04(d) | Entered Factory 21345 | -5/Factory | Evolved 2 slots: Utility x2 21370 | -5/Factory | Lost 8 parts (1p4n3u) 21378 | -5/Factory | Spotted B-75 Beast 21450 | -5/Factory | Fabricated Exp. Hacking Suite? 21627 | -5/Factory | Build established: Hacker-Mutant 21685 | -5/Factory | Fabricated Cld. Gravmag System? 21712 | -5/Factory | Lost 3 parts (2u1w) 21850 | -5/Factory | Discovered new exit (range 13) 21921 | -5/Factory | Core integrity fell below 50% 22238 | -5/Factory | Destroyed 8 combat bots 22342 | -5/Factory | Repaired Cld. Gravmag System 22400 | -5/Factory | Repaired Centrium Medium Armor Plating 22415 | -5/Factory | Identified exit to Upper Caves 22625 | -5/Factory | Fabricated Cld. Gravmag System? 22628 | -5/Factory | Central database locked down 22740 | -5/Factory | Identified exit to Factory 22772 | -5/Factory | Fabricated Exp. Hacking Suite? 23058 | -5/Factory | Fabricated Exp. Hacking Suite (x1) 23081 | -5/Factory | Build established: Hacker-Scout 23274 | -5/Factory | Fabricated Exp. Utility Shielding? 24014 | -5/Factory | Repaired Cld. Gravmag System 24128 | -5/Factory | Fabricated Cld. Gravmag System? 24197 | -5/Factory | Fabricated Centrium Medium Armor Plating? 24265 | -5/Factory | Entered Upper Caves 24283 | -5/Upper Caves | Met a Warlord Commander 24284 | -5/Upper Caves | Learned location of Warlord (-4) 24285 | -5/Upper Caves | Warlord Commander delivered Encrypted Comm Array 24286 | -5/Upper Caves | Found Encrypted Comm Array 24560 | -5/Upper Caves | Build established: Hacker-Assassin 25298 | -5/Upper Caves | Discovered new exit (range 6) 25302 | -5/Upper Caves | Identified exit to Upper Caves 25304 | -5/Upper Caves | Entered another Upper Caves area 25647 | -5/Upper Caves | Build established: Hacker-Ninja 26300 | -5/Upper Caves | Learned Factory non-interactive machine intel 26406 | -5/Upper Caves | Attracted the attention of an 0b10 checkpoint 26532 | -5/Upper Caves | Discovered new exit (range 6) 26533 | -5/Upper Caves | Identified exit to Zhirov 26534 | -5/Upper Caves | Entered Zhirov 26536 | -5/Zhirov | Discovered new exit (range 3) 26536 | -5/Zhirov | Identified exit to Proximity Caves 26545 | -5/Zhirov | Met Zhirov 26553 | -5/Zhirov | Learned location of Quarantine (-2) 26553 | -5/Zhirov | Learned location of Testing (-3) 26553 | -5/Zhirov | Learned location of Command (-1) 26559 | -5/Zhirov | Zhirov requested help retrieving the SGEMP Prototype 26567 | -5/Zhirov | Found Alien Artifact 26567 | -5/Zhirov | Identified Integrated Reactor 26567 | -5/Zhirov | Installed Integrated Reactor, increased core energy generation (+10) 26638 | -5/Zhirov | Found Alien Artifact 26664 | -5/Zhirov | Entered Proximity Caves 26749 | -4/Proximity Caves | Spotter reported a threat 26842 | -4/Proximity Caves | Spotter reported a threat 26863 | -4/Proximity Caves | Build established: Hacker-Scout 26871 | -4/Proximity Caves | Spotter reported a threat 26899 | -4/Proximity Caves | Discovered exit to Factory (range 5) 26901 | -4/Proximity Caves | Entered Factory 26901 | -4/Factory | Evolved 2 slots: Power x1, Propulsion x1 26902 | -4/Factory | Loaded intel: 193 non-interactive machine locations 26912 | -4/Factory | Allied Derelicts emerged from ambush trap array 26935 | -4/Factory | Identified exit to Upper Caves 26935 | -4/Factory | Identified exit to Armory 26935 | -4/Factory | Identified exit to Research 27151 | -4/Factory | Search patrols dispatched 27208 | -4/Factory | Joined by Warlord Ghost squad 27238 | -4/Factory | Build established: Wizard-Scout 27323 | -4/Factory | Central database locked down 27378 | -4/Factory | Joined by Warlord Ghost squad 27432 | -4/Factory | Joined by Warlord Infantry squad 27496 | -4/Factory | Joined by Warlord Geek squad 27581 | -4/Factory | Repaired Exp. Utility Shielding 27608 | -4/Factory | Spotted B-86 Titan 27661 | -4/Factory | Identified Transdimensional Reconstructor 27687 | -4/Factory | Joined by Warlord Dakka squad 27832 | -4/Factory | Repaired Broken CPS Tube? 27869 | -4/Factory | Fabricated Hyb. Antimatter Reactor (x2) 27883 | -4/Factory | Fabricated Cmb. Antigrav System (x2) 27925 | -4/Factory | Fabricated Assault Drone Bay (x1) 27947 | -4/Factory | Lost 5 allies 28123 | -4/Factory | Entered Upper Caves 28333 | -4/Upper Caves | Discovered new exit (range 8) 28335 | -4/Upper Caves | Identified exit to Upper Caves 28348 | -4/Upper Caves | Entered another Upper Caves area 28356 | -4/Upper Caves | Learned Research security intel 28942 | -4/Upper Caves | Discovered exit to Research (range 12) 29548 | -4/Upper Caves | Learned 8 Research zone layouts 29603 | -4/Upper Caves | Discovered new exit (range 9) 29607 | -4/Upper Caves | Identified exit to Warlord 29666 | -4/Upper Caves | Entered Warlord 29680 | -4/Warlord | Discovered new exit (range 9) 29880 | -4/Warlord | Received a Watcher feed algorithm from an ecstatic Tinkerer 29947 | -4/Warlord | Met Warlord 29967 | -4/Warlord | Warlord's base attacked by MAIN.C 29979 | -4/Warlord | Found Prototype Device 29979 | -4/Warlord | Identified Thermal Barrier 29981 | -4/Warlord | Found Prototype Processor 29981 | -4/Warlord | Identified Exp. Armor Integrity Analyzer 29991 | -4/Warlord | Found Prototype Reactor 30010 | -4/Warlord | Found Prototype Hackware 30174 | -4/Warlord | Found Prototype Launcher 30177 | -4/Warlord | Found Prototype Energy Cannon 30177 | -4/Warlord | Identified Vortex Driver 30184 | -4/Warlord | Found Vortex Driver 30278 | -4/Warlord | Build established: Hacker-Mutant 30317 | -4/Warlord | Warlord forces counterattacked 30328 | -4/Warlord | Lost 3 allies 30391 | -4/Warlord | Lost 6 allies 30399 | -4/Warlord | Spotted Striker 30401 | -4/Warlord | Spotted Executioner 30448 | -4/Warlord | Lost 10 allies 30518 | -4/Warlord | Lost 13 allies 30528 | -4/Warlord | Spotted Executioner 30642 | -4/Warlord | Warlord base infiltrated, sounded retreat 30742 | -4/Warlord | Spotted Striker 30799 | -4/Warlord | Identified exit to Proximity Caves 30800 | -4/Warlord | Entered Proximity Caves 30803 | -3/Proximity Caves | Spotter reported a threat 30977 | -3/Proximity Caves | Spotter reported a threat 31052 | -3/Proximity Caves | Spotter reported a threat 31077 | -3/Proximity Caves | Spotter reported a threat 31365 | -3/Proximity Caves | Discovered exit to Research (range 6) 31371 | -3/Proximity Caves | Entered Research 31371 | -3/Research | Evolved 2 slots: Utility x2 31420 | -3/Research | Identified System Mapper 31433 | -3/Research | Identified exit to Testing 31467 | -3/Research | Repaired Exp. Utility Shielding 31505 | -3/Research | Repaired Com. Particle Reactor 31542 | -3/Research | Repaired Centrium Medium Armor Plating 31571 | -3/Research | Revision forces began assault on 0b10 31626 | -3/Research | Repaired Cld. Gravmag System? 31653 | -3/Research | Met up with Revision 17++ 31694 | -3/Research | Repaired Cld. Gravmag System? 31721 | -3/Research | Build established: Wizard-Mutant 31744 | -3/Research | Repaired Cld. Gravmag System 31745 | -3/Research | Lost 4 allies 31759 | -3/Research | Discovered new exit (range 19) 31794 | -3/Research | Identified exit to Research 32046 | -3/Research | Found Enh. Force Lance 32071 | -3/Research | Research terminal network offline 32109 | -3/Research | Found Prototype Device 32109 | -3/Research | Identified Exp. Thermal Defense Suite 32194 | -3/Research | Found Prototype Processor 32194 | -3/Research | Identified Exp. Terrain Scan Processor 32304 | -3/Research | Identified Vortex Chain Reactor 32304 | -3/Research | Identified Vortex Catalyst Activator 32326 | -3/Research | Fabricated Point Singularity Launcher (x1) 32429 | -3/Research | Found Exp. Targeting Computer 32461 | -3/Research | Fabricated CPS Tube (x1) 32489 | -3/Research | Build established: Hacker-Mutant 32719 | -3/Research | Repaired Exp. Utility Shielding 32843 | -3/Research | Spotted B-86 Titan 33228 | -3/Research | Spotted Striker 33254 | -3/Research | Spotted Striker 33259 | -3/Research | Entered Testing 33277 | -3/Testing | Found Prototype Hackware 33277 | -3/Testing | Identified Ghost Barrier 33378 | -3/Testing | Found Prototype Energy Gun 33378 | -3/Testing | Identified Hyp. EM Gauss Rifle 33478 | -3/Testing | Scanned by Researcher 33499 | -3/Testing | Found Prototype Protection 33499 | -3/Testing | Identified Med. Regenerative Plating 33501 | -3/Testing | Found Prototype Protection 33501 | -3/Testing | Identified Lgt. Regenerative Plating 33504 | -3/Testing | Found Prototype Protection 33504 | -3/Testing | Identified Hvy. Regenerative Plating 33517 | -3/Testing | Found Prototype Protection 33562 | -3/Testing | Build established: Wizard-Mutant 33616 | -3/Testing | Repaired Cmb. Antigrav System 33695 | -3/Testing | Spotted Striker 33698 | -3/Testing | Stole the SGEMP Prototype 33715 | -3/Testing | Rewired Striker 33724 | -3/Testing | Spotted Alpha 7 33843 | -3/Testing | Repaired Cld. Gravmag System 33918 | -3/Testing | Repaired Cmb. Linear Gravjet 33938 | -3/Testing | Spotted Striker 34008 | -3/Testing | Fabricated Cmb. Linear Gravjet (x2) 34026 | -3/Testing | Fabricated Point Singularity Launcher (x1) 34081 | -3/Testing | Fabricated Point Singularity Launcher (x1) 34244 | -3/Testing | Entered Research 34244 | -2/Research | Warlord forces began assault on 0b10 34244 | -2/Research | Evolved 2 slots: Weapon x2 34245 | -2/Research | Identified exit to Quarantine 34269 | -2/Research | Distinguished unit "Metalheads" dispatched to help 34269 | -2/Research | Distinguished unit "Magnificent Bastards" dispatched to help 34274 | -2/Research | Identified exit to Access 34354 | -2/Research | Research machine network offline 34368 | -2/Research | P-80 Master assimilated allied Director 9a 34482 | -2/Research | Found Prototype Device 34482 | -2/Research | Identified Exp. EM Disruption Field 34580 | -2/Research | Met up with Warlord 34591 | -2/Research | Borebot progress halted 34599 | -2/Research | Found Prototype Processor 34599 | -2/Research | Identified Exp. Core Analyzer 34665 | -2/Research | Discovered exit to Quarantine (range 16) 34761 | -2/Research | Spotted Executioner 34765 | -2/Research | Rewired Executioner 34819 | -2/Research | Borebot progress halted 34845 | -2/Research | Spotted Executioner 34852 | -2/Research | Rewired Executioner 34853 | -2/Research | Spotted Striker 35114 | -2/Research | Found Exp. Core Analyzer 35114 | -2/Research | Borebot progress halted 35174 | -2/Research | Spotted Striker 35244 | -2/Research | Warlord invited to help at Command 35245 | -2/Research | Spotted Executioner 35245 | -2/Research | Spotted Executioner 35320 | -2/Research | Spotted Executioner 35357 | -2/Research | Entered Quarantine 35385 | -2/Quarantine | Found Alien Slashing Weapon 35385 | -2/Quarantine | Identified Sigix Broadsword 35406 | -2/Quarantine | Build established: Hacker-Mutant 35423 | -2/Quarantine | Found Alien Artifact 35423 | -2/Quarantine | Identified Phase Armor 35513 | -2/Quarantine | Identified SHELL Armor 35656 | -2/Quarantine | Repaired Adv. Gravity Neutralizer 35693 | -2/Quarantine | Repaired Cmb. Antigrav System 35810 | -2/Quarantine | Cryocooling Duct disabled 35825 | -2/Quarantine | Ambient heat levels rising (+20) 35825 | -2/Quarantine | Non-combat units ordered to evacuate 35870 | -2/Quarantine | Cryocooling Duct disabled 35885 | -2/Quarantine | Ambient heat levels rising (+20) 35885 | -2/Quarantine | Combat units ordered to evacuate 35985 | -2/Quarantine | Quarantine Guard activated 36059 | -2/Quarantine | Found Alien Artifact 36073 | -2/Quarantine | Spotted Quarantine Guard 36141 | -2/Quarantine | Found Alien Artifact 36141 | -2/Quarantine | Identified Phase Redirector 36355 | -2/Quarantine | Spotted Quarantine Guard 36359 | -2/Quarantine | Spotted Quarantine Guard 36416 | -2/Quarantine | Found Alien Launcher 36462 | -2/Quarantine | Spotted Quarantine Guard 36498 | -2/Quarantine | Spotted Fortress 36557 | -2/Quarantine | Discovered new exit (range 5) 36557 | -2/Quarantine | Spotted Quarantine Guard 36559 | -2/Quarantine | Entered Section 7 36561 | -2/Section 7 | Spotted S7 Guard 36588 | -2/Section 7 | Destroyed S7 Guard 36602 | -2/Section 7 | Found Alien Artifact 36602 | -2/Section 7 | Identified Core Membrane 36602 | -2/Section 7 | Installed Core Membrane, gained immunity to corruption 36646 | -2/Section 7 | Found Alien Artifact 36646 | -2/Section 7 | Identified Integrity Redistributor 36646 | -2/Section 7 | Used Integrity Redistributor, redistributed integrity from core (-111) 36829 | -2/Section 7 | Spotted B-90 Cyclops 36918 | -2/Section 7 | Found Alien Artifact 36918 | -2/Section 7 | Identified Microwarp Drive 37000 | -2/Section 7 | Found Alien Artifact 37012 | -2/Section 7 | Identified Spacefold Activator 37012 | -2/Section 7 | Identified Subatomic Replicator 37012 | -2/Section 7 | Identified Sigix Terminator 37270 | -2/Section 7 | Found Integrated Reactor 37270 | -2/Section 7 | Installed Integrated Reactor, increased core energy generation (+10) 37273 | -2/Section 7 | Spotted Alpha 7 37276 | -2/Section 7 | Spotted Alpha 7 37317 | -2/Section 7 | Destroyed Alpha 7 37368 | -2/Section 7 | Destroyed Alpha 7 37373 | -2/Section 7 | Found Prototype Processor 37373 | -2/Section 7 | Identified Exp. Target Analyzer 37383 | -2/Section 7 | Found Prototype Ballistic Gun 37383 | -2/Section 7 | Identified Multirail 37386 | -2/Section 7 | Found Exp. Targeting Computer 37391 | -2/Section 7 | Lost 3 parts (2u1w) 37399 | -2/Section 7 | Found Multirail 37645 | -2/Section 7 | Spotted B-99 Colossus 37705 | -2/Section 7 | Found Alien Artifact 37705 | -2/Section 7 | Identified LRC Insulator 37705 | -2/Section 7 | Installed LRC Insulator, gained EM resistance (25) 37760 | -2/Section 7 | Found Integrity Redistributor 37760 | -2/Section 7 | Used Integrity Redistributor, redistributed integrity from core (-124) 37766 | -2/Section 7 | Found Integrity Redistributor 37911 | -2/Section 7 | Core integrity fell below 50% 37916 | -2/Section 7 | Build established: Scavenger-Gunner 38015 | -2/Section 7 | Found Exp. Core Analyzer 38080 | -2/Section 7 | Entered Access 38080 | -1/Access | Evolved 2 slots: Weapon x2 38081 | -1/Access | Delivered the SGEMP Prototype to Zhirov 38081 | -1/Access | Zhirov transferred Access data 38082 | -1/Access | Loaded intel: 111 machine locations 38082 | -1/Access | Loaded intel: 93 trap records 38082 | -1/Access | Identified exit to Surface 38082 | -1/Access | Discovered exit to Surface (range 107) 38082 | -1/Access | Identified exit to Command 38082 | -1/Access | Discovered exit to Command (range 164) 38152 | -1/Access | Fabricated Point Singularity Launcher? 38240 | -1/Access | Zhirov warped through subspace 38332 | -1/Access | Lost 10 parts (3n4u3w) 38339 | -1/Access | Destroyed 9 combat bots 38509 | -1/Access | Core integrity fell below 50% 38551 | -1/Access | Core integrity fell below 20% 38580 | -1/Access | First assault squad dispatched 38582 | -1/Access | Lost 12 parts (2p4n3u3w) 38612 | -1/Access | Entered Command 38642 | -1/Command | Destroyed by Y-72 Warden with Quantum Rifle Last Messages --------------- 38600_ Connecting with Terminal... >>Open(Door) Sealed Barrier opened. 38604_ Connecting with Terminal... >>Open(Door) Sealed Barrier opened. 38609_ Connecting with Terminal... >>Open(Door) Sealed Barrier opened. LOCATION=COMMAND GOAL=ESCAPE 38612_ ALERT: Rogue bot within command proximity. Terminate immediately. 38621_ Slug penetrates Wall. 38621_ Penetrated by Slug. 38625_ Slug penetrates Wall. 38628_ Penetrated by Slug. 38628_ Slug penetrates Wall. 38628_ Penetrated by Slug. 38628_ Slug penetrates H-88 Terminator. Map ----- +----------------------------------------------------+ | ?????????????????????????????????????????????????? | | ?????????????????????????????????????????????????? | | ?????????????????????????????????????????????????? | | ?????????????????????????????????????????????????? | | ?????????????????????????????????????????????????? | | ?????????????????????????????????????????????????? | | ?????????????????????????????????????????????????? | | ?????????????????????????????????????????????????? | | ?????????????????????????????????????????????????? | | ?????????????????????????????????????????????????? | | ?????????????????????????????????????????????????? | | ?????????????????????????????????????????????????? | | ?????????????????????????????????????????????????? | | ???????????????????????????????????????#?????????? | | ?????????????????????????????????????? #?????????? | | ???????????????????????????????????? ??????????? | | ??????????????????????????????????? ???????????? | | ?????????????????????????????????? ????????????? | | ????????????????????????????????? ??????????????? | | ???????????????????????????????? ??????????????## | | ??????????????????????######??? ???????????????# | | ??????????????????????# ### ?????????????????# | | ??????????????????????# Y ??????????????????# | | ??????????????????????# ???????????????????# | | ??????????????????????# #????????????????????# | | ???????????????????????# @#????????## ??????# | | ???????????????????????# ######### ## ??????## | | ???????????????????????# + """"" # ??????? | | ???????????????????????# # ""Y"" # ####### | | ???????????????????????# # # | | ???????????????????????# # # ### | | ???????????????????????# # #?? #?? | | ???????????????????????# # == #??? #?? | | ???????????????????????# # =! #????# #?? | | ???????????????????????# # = #????# #?? | | ???????????????????????# # #????# #?? | | ???????????????????????# # #????# ### | | ???????????????????????# # ###### | | ???????????????????????# # ## # | | ???????????????????????# # ## # | | ???????????????????????# # ## # | | ???????????????????????# # ## # | | ???????????????????????? #####+####### # | | ???????????????????????? ????# #?????# # | | ???????????????????????? ????# #?????# # | | ???????????????????????? ????# ########+## | | ??????????????????????????????# | | ??????????????????????????????# ##+##+############ | | ??????????????????????????????# # ??????????? | | ??????????????????????????????# # ??????????? | +----------------------------------------------------+ Best States ------------- Heat Dissipation 78 Coolant Potential 120 Energy Generation 63 Energy Capacity 2100 Matter Stores 800 Matter Capacity 800 Sight Range 20 Robot Scan Range 18 Terrain Scan Range 16 Terrain Scan Density 1010 ECM Strength 2 Jamming Range 16 Cloak Strength 3 Additional Mass Support 16 Armor Coverage 1200 Resistance: TH 50 Resistance: EM 25 Core Shielding 40 Utility Shielding 90 Weapon Cycling 15 Melee Speed Boost 20 Phase Shifting 15 Evasion (%) 69 Targeting Accuracy 12 Melee Accuracy 12 Target Analysis 14 Core Analysis 12 Armor Integrity Analysis 30 Recoil Reduction 3 Offensive Hacking 66 Defensive Hacking 20 Authchip Count 3 Item Schematics ----------------- Cargo Storage Unit | -10/Materials | Hacked Adv. System Shield | -8/Materials | Scanalyzed Centrium Light Armor Plating | -6/Factory | Scanalyzed Cld. Gravmag System | -6/Factory | Scanalyzed Hcp. Storage Unit | -6/Factory | Scanalyzed Exp. Hacking Suite | -6/Hub_04(d) | Hacked Centrium Medium Armor Plating | -5/Factory | Scanalyzed Thermic Laser | -5/Factory | Scanalyzed Tiamat Missile Launcher | -5/Factory | Scanalyzed Impulse Thruster Array | -5/Factory | Hacked Exp. Utility Shielding | -5/Factory | Hacked Antimissile System | -5/Factory | Hacked Fusion Bomb Launcher | -5/Factory | Hacked Disruptor Cannon | -5/Factory | Hacked Cmb. Gravmag System | -5/Factory | Scanalyzed Adv. System Restoration Module | -5/Factory | Scanalyzed Shock Maul | -5/Factory | Scanalyzed Imp. Transmission Jammer | -5/Factory | Scanalyzed Com. HERF Cannon | -5/Factory | Hacked Hyp. Gauss Cannon | -5/Factory | Hacked Imp. Remote Datajack | -5/Factory | Hacked Mic. Antimatter Reactor | -5/Factory | Hacked Exp. Optical Array | -5/Factory | Hacked Imp. Arc Projector | -5/Factory | Hacked Assault Drone Bay | -5/Zhirov | Free Exp. Heat Sink | -5/Zhirov | Free Imp. Arc Thrower | -5/Zhirov | Free Hyb. Antimatter Reactor | -4/Factory | Hacked Prc. Matter Filter | -4/Factory | Hacked Cmb. Antigrav System | -4/Factory | Hacked Plasma Lance | -4/Factory | Hacked CPS Tube | -4/Factory | Scanalyzed Exp. Core Shielding | -4/Factory | Scanalyzed Graphene Brace | -4/Factory | Scanalyzed Centrium Wheel | -4/Factory | Hacked Hvy. Disruptor Cannon | -4/Factory | Hacked Com. Particle Reactor | -4/Factory | Scanalyzed Point Singularity Launcher | -3/Research | Hacked Zero-point Reactor | -3/Research | Hacked Adv. Quantum Shading Machine | -3/Research | Hacked Cmb. Linear Gravjet | -3/Research | Hacked Exp. Q-thruster | -3/Research | Hacked Vortex Chain Reactor | -3/Research | Scanalyzed Imp. Energy Mantle | -3/Research | Scanalyzed Adv. Weapon Cycler | -3/Research | Scanalyzed Matter Filter | -3/Research | Scanalyzed Adv. Kinecellerator | -3/Testing | Archive Com. Tesla Bomb Launcher | -2/Quarantine | Archive Imp. Diametric Drive | -2/Quarantine | Archive Exp. Gyrokinetic Inverter | -2/Quarantine | Archive Adv. Myomer Leg | -2/Section 7 | Archive Exp. Myomer Leg | -2/Section 7 | Archive Beam Splitter | -2/Section 7 | Hacked Hvy. Proton Cannon | -2/Section 7 | Archive Robot Schematics ------------------ S-27 Virus | -5/Factory | Hacked A-15 Conveyor | -3/Testing | Archive K-01 Serf | -2/Quarantine | Archive R-10 Processor | -2/Quarantine | Archive A-27 Freighter | -2/Section 7 | Archive Fabricated ------------ Exp. Hacking Suite | x1 | -5/Factory | Authchip Cld. Gravmag System | x1 | -5/Factory | Authchip Cld. Gravmag System | x1 | -5/Factory | Authchip Exp. Hacking Suite | x1 | -5/Factory Exp. Hacking Suite | x1 | -5/Factory | Authchip Exp. Utility Shielding | x1 | -5/Factory Cld. Gravmag System | x1 | -5/Factory | Authchip Centrium Medium Armor Plating | x1 | -5/Factory Hyb. Antimatter Reactor | x2 | -4/Factory | Authchip Cmb. Antigrav System | x2 | -4/Factory | Authchip Assault Drone Bay | x1 | -4/Factory Point Singularity Launcher | x1 | -3/Research | Authchip CPS Tube | x1 | -3/Research Cmb. Linear Gravjet | x2 | -3/Testing | Preloaded Point Singularity Launcher | x1 | -3/Testing | Authchip Point Singularity Launcher | x1 | -3/Testing | Authchip Point Singularity Launcher | x1 | -1/Access | Authchip Alien Tech Used ----------------- Integrated Reactor Sigix Broadsword Phase Armor Phase Redirector Core Membrane Integrity Redistributor Microwarp Drive LRC Insulator Achievements -------------- Fearless Challenges ------------ None Game ------ Seed ThunderReactionConstruct Manual? 0 Play Time 08:39:56 Cumulative 800.5 hours Start 2024.06.03 @ 21:00:52 End 2024.06.04 @ 07:45:57 Sessions 1 Manual Loads 0 Difficulty Rogue Special Mode None Game No. 329 Rogue 299 Adventurer 3 Explorer 27 Win Type - Total 17 Types 10/3/2/1/0/1/0/0/0 Lore% 93 Gallery% 97 Achievement% 86 Wizard Run 0 Options --------- Layout 2 ASCII 0 Keyboard 0 Movement Numpad Keybinds 0 Fullscreen 2 Font 24/Smallcaps Map View 50x44 Zoom Use 0% Tactical HUD 1 Map Filters NONE Filters NONE Steam 1 RUN: 49435577-8433-4d2b-b065-39c42d115f3c